{"text_format":"1","workbook":"xlsx","n_sheets":6,"sheets":["Справочники","Для заполнения","Служебное задание","Заявление на аванс","Заявление для совместителей","Расчеты"],"not_rendered":{"charts":0,"images":0,"macros":1,"external_links":0,"defined_names":4,"comments":1,"pivot_tables":0},"unopened":[],"bounds":{"document_bytes":16777216,"sheet_cells":100000,"rows_first":2000,"rows_last":500,"rows_between":2000,"halvings":0,"cell_chars":16384,"cell_head_chars":4096},"cells_cut":0,"cells_raw":0,"read":"whole","date_system":"1900"}

{"sheet":"Справочники","index":0,"n_rows":314,"n_cols":11,"rows_kept":314,"cut":false,"hidden":true,"merged":[]}
["Организация плательщик",null,"Вид компенсации выходных дней ",null,"Счет МФО",null,"По второму месту работы:",null,"Подразделения",null,"Принимающая сторона оплачивает"]
["ФГБОУ ВО СамГМУ Минздрава России",null,"Оплата в повышенном размере",null,"Счет 1",null,"Отпуск без сохранения заработной платы",null,"Административно-хозяйственное управление",null,"Ничего"]
["ООО «СмартИмплант»",null,"Другой день отдыха",null,"Счет 2",null,"Дополнительные выходные дни в счёт очередного оплачиваемого отпуска",null,"Аптека",null,"Только проезд"]
["ООО «Комбис»",null,null,null,"Счет 3",null,null,null,"Архив",null,"Только проживание"]
["ООО «Синергия»",null,null,null,null,null,null,null,"Библиотека",null,"Проезд и проживание"]
["ООО «Биокерамика»",null,null,null,null,null,null,null,"Биотехнологический отдел ИЭМБ"]
["ООО «Прототип»",null,null,null,null,null,null,null,"Виварий"]
["ООО «Феникс-мед»",null,null,null,null,null,null,null,"Видеостудия"]
["ООО «Самара-фит»",null,null,null,null,null,null,null,"Гастроэнтерологическое отделение КФТ"]
["ООО «ПРИК»",null,null,null,null,null,null,null,"Гинекологическое отделение"]
["ООО «Лиоселл»",null,null,null,null,null,null,null,"Группа документационного обеспечения управления учебного процесса и науки"]
["ООО «Самара-Биотехнологии»",null,null,null,null,null,null,null,"Группа по специальной работе в подразделении Клиник"]
["ООО «Менеджмент»",null,null,null,null,null,null,null,"Деканат довузовской подготовки"]
["ООО «НПО Медтех»",null,null,null,null,null,null,null,"Деканат лечебного факультета"]
[null,null,null,null,null,null,null,null,"Деканат медико-профилактического факультета"]
[null,null,null,null,null,null,null,null,"Деканат педиатрического факультета"]
[null,null,null,null,null,null,null,null,"Деканат стоматологического факультета"]
[null,null,null,null,null,null,null,null,"Деканат факультет повышения квалификации преподавателей и переподготовки кадров"]
[null,null,null,null,null,null,null,null,"Деканат факультета медицинской психологии и экономики управления здравоохранением"]
[null,null,null,null,null,null,null,null,"Деканат факультета повышения квалификации"]
[null,null,null,null,null,null,null,null,"Деканат фармацевтического факультета"]
[null,null,null,null,null,null,null,null,"Дерматовенерологическое отделение"]
[null,null,null,null,null,null,null,null,"Детское травматолого-ортопедическое отделение КТО"]
[null,null,null,null,null,null,null,null,"Инженерная группа по ремонту и обслуживанию медицинского оборудования"]
[null,null,null,null,null,null,null,null,"Инженерная служба Клиник"]
[null,null,null,null,null,null,null,null,"Инженерно-технический отдел"]
[null,null,null,null,null,null,null,null,"Институт инновационного развития"]
[null,null,null,null,null,null,null,null,"Институт профессионального образования"]
[null,null,null,null,null,null,null,null,"Институт сестринского образования"]
[null,null,null,null,null,null,null,null,"Институт экспериментальной медицины и биотехнологий"]
[null,null,null,null,null,null,null,null,"Инфекционное отделение №1 КИБ"]
[null,null,null,null,null,null,null,null,"Инфекционное отделение №2 КИБ"]
[null,null,null,null,null,null,null,null,"Кабинет амбулаторно-поликлинической помощи нефрологического отделения"]
[null,null,null,null,null,null,null,null,"Кабинет гипербарической оксигенации"]
[null,null,null,null,null,null,null,null,"Кабинет клинической биомеханики"]
[null,null,null,null,null,null,null,null,"Кардиологическое отделение №1 КПТ"]
[null,null,null,null,null,null,null,null,"Кардиологическое отделение №2 КПТ"]
[null,null,null,null,null,null,null,null,"Кафедра акушерства и гинекологии ИПО"]
[null,null,null,null,null,null,null,null,"Кафедра акушерства и гинекологии №1"]
[null,null,null,null,null,null,null,null,"Кафедра акушерства и гинекологии №2"]
[null,null,null,null,null,null,null,null,"Кафедра анатомии человека"]
[null,null,null,null,null,null,null,null,"Кафедра анестезиологии, реаниматологии и скорой медицинской помощи ИПО"]
[null,null,null,null,null,null,null,null,"Кафедра внутренних болезней"]
[null,null,null,null,null,null,null,null,"Кафедра гериатрии и возрастной эндокринологии"]
[null,null,null,null,null,null,null,null,"Кафедра гигиены питания с курсом гигиены детей и подростков"]
[null,null,null,null,null,null,null,null,"Кафедра гистологии и эмбриологии"]
[null,null,null,null,null,null,null,null,"Кафедра глазных болезней ИПО"]
[null,null,null,null,null,null,null,null,"Кафедра госпитальной педиатрии"]
[null,null,null,null,null,null,null,null,"Кафедра госпитальной терапии с курсами поликлинической терапии и трансфузиологии"]
[null,null,null,null,null,null,null,null,"Кафедра госпитальной хирургии"]
[null,null,null,null,null,null,null,null,"Кафедра детских болезней"]
[null,null,null,null,null,null,null,null,"Кафедра детских инфекций"]
[null,null,null,null,null,null,null,null,"Кафедра детской хирургии"]
[null,null,null,null,null,null,null,null,"Кафедра доказательной медицины и клинической фармакологии"]
[null,null,null,null,null,null,null,null,"Кафедра иностранных и латинского языков"]
[null,null,null,null,null,null,null,null,"Кафедра инфекционных болезней с эпидемиологией"]
[null,null,null,null,null,null,null,null,"Кафедра информационных систем и технологий в медицине"]
[null,null,null,null,null,null,null,null,"Кафедра истории отечества, медицины и социальных наук"]
[null,null,null,null,null,null,null,null,"Кафедра кардиологии и сердечно-сосудистой хирургии ИПО"]
[null,null,null,null,null,null,null,null,"Кафедра кожных и венерических болезней"]
[null,null,null,null,null,null,null,null,"Кафедра лучевой диагностики и лучевой терапии с курсом медицинской информатики"]
[null,null,null,null,null,null,null,null,"Кафедра медико-профилактического дела ИПО"]
[null,null,null,null,null,null,null,null,"Кафедра медицинского права и биоэтики"]
[null,null,null,null,null,null,null,null,"Кафедра медицинского страхования ИПО"]
[null,null,null,null,null,null,null,null,"Кафедра медицинской  физики, математики и информатики"]
[null,null,null,null,null,null,null,null,"Кафедра медицинской биологии, генетики и экологии"]
[null,null,null,null,null,null,null,null,"Кафедра медицинской психологии и психотерапии"]
[null,null,null,null,null,null,null,null,"Кафедра медицинской реабилитации, спортивной медицины, физиотерапии и курортологии"]
[null,null,null,null,null,null,null,null,"Кафедра неврологии и нейрохирургии"]
[null,null,null,null,null,null,null,null,"Кафедра общей гигиены"]
[null,null,null,null,null,null,null,null,"Кафедра общей и клинической микробиологии, иммунологии и аллергологии"]
[null,null,null,null,null,null,null,null,"Кафедра общей и клинической патологии"]
[null,null,null,null,null,null,null,null,"Кафедра общей психологии и социальной работы"]
[null,null,null,null,null,null,null,null,"Кафедра общей хирургии"]
[null,null,null,null,null,null,null,null,"Кафедра общей, бионеорганической и биоорганической химии"]
[null,null,null,null,null,null,null,null,"Кафедра общественного здоровья и здравоохранения"]
[null,null,null,null,null,null,null,null,"Кафедра общественного здоровья и здравоохранения ИПО"]
[null,null,null,null,null,null,null,null,"Кафедра онкологии"]
[null,null,null,null,null,null,null,null,"Кафедра оперативной хирургии и клинической анатомии с курсом инновационных технологий"]
[null,null,null,null,null,null,null,null,"Кафедра ортопедической стоматологии"]
[null,null,null,null,null,null,null,null,"Кафедра оториноларингологии"]
[null,null,null,null,null,null,null,null,"Кафедра офтальмологии"]
[null,null,null,null,null,null,null,null,"Кафедра педагогики, психологии и психолингвистики"]
[null,null,null,null,null,null,null,null,"Кафедра педиатрии ИПО"]
[null,null,null,null,null,null,null,null,"Кафедра пропедевтической терапии"]
[null,null,null,null,null,null,null,null,"Кафедра профессиональных болезней и клинической фармакологии имени заслуженного деятеля науки РФ, профессора Косарева В.В."]
[null,null,null,null,null,null,null,null,"Кафедра психиатрии, наркологии, психотерапии и клинической психологии"]
[null,null,null,null,null,null,null,null,"Кафедра репродуктивной медицины, клинической эмбриологии и генетики"]
[null,null,null,null,null,null,null,null,"Кафедра семейной медицины ИПО"]
[null,null,null,null,null,null,null,null,"Кафедра сестринского дела"]
[null,null,null,null,null,null,null,null,"Кафедра стоматологии детского возраста"]
[null,null,null,null,null,null,null,null,"Кафедра стоматологии ИПО"]
[null,null,null,null,null,null,null,null,"Кафедра судебной медицины"]
[null,null,null,null,null,null,null,null,"Кафедра терапевтической стоматологии"]
[null,null,null,null,null,null,null,null,"Кафедра терапии ИПО"]
[null,null,null,null,null,null,null,null,"Кафедра травматологии, ортопедии и поликлинической хирургии ИПО"]
[null,null,null,null,null,null,null,null,"Кафедра травматологии, ортопедии и экстремальной хирургии имени академика РАН А.Ф. Краснова"]
[null,null,null,null,null,null,null,null,"Кафедра управления и экономики фармации"]
[null,null,null,null,null,null,null,null,"Кафедра управления качеством в здравоохранении ИПО"]
[null,null,null,null,null,null,null,null,"Кафедра урологии"]
[null,null,null,null,null,null,null,null,"Кафедра факультетской педиатрии"]
[null,null,null,null,null,null,null,null,"Кафедра факультетской терапии"]
[null,null,null,null,null,null,null,null,"Кафедра факультетской хирургии"]
[null,null,null,null,null,null,null,null,"Кафедра фармакогнозии с ботаникой и основами фитотерапии"]
[null,null,null,null,null,null,null,null,"Кафедра фармакологии"]
[null,null,null,null,null,null,null,null,"Кафедра фармацевтической технологии"]
[null,null,null,null,null,null,null,null,"Кафедра физиологии с курсом безопасности жизнедеятельности и медицины катастроф"]
[null,null,null,null,null,null,null,null,"Кафедра физического воспитания и здоровья"]
[null,null,null,null,null,null,null,null,"Кафедра философии и культурологии"]
[null,null,null,null,null,null,null,null,"Кафедра фтизиатрии и пульмонологии"]
[null,null,null,null,null,null,null,null,"Кафедра фундаментальной и клинической биохимии с лабораторной диагностикой"]
[null,null,null,null,null,null,null,null,"Кафедра химии фармацевтического факультета"]
[null,null,null,null,null,null,null,null,"Кафедра хирургии ИПО"]
[null,null,null,null,null,null,null,null,"Кафедра хирургических болезней №1"]
[null,null,null,null,null,null,null,null,"Кафедра хирургических болезней №2"]
[null,null,null,null,null,null,null,null,"Кафедра челюстно-лицевой хирургии и стоматологии"]
[null,null,null,null,null,null,null,null,"Кафедра эндокринологии"]
[null,null,null,null,null,null,null,null,"Клиника анестезиологии-реаниматологии"]
[null,null,null,null,null,null,null,null,"Клиника госпитальной терапии (КГТ)"]
[null,null,null,null,null,null,null,null,"Клиника госпитальной хирургии (КГХ)"]
[null,null,null,null,null,null,null,null,"Клиника инфекционных болезней (КИБ)"]
[null,null,null,null,null,null,null,null,"Клиника кожных и венерических болезней"]
[null,null,null,null,null,null,null,null,"Клиника ЛОР-болезней"]
[null,null,null,null,null,null,null,null,"Клиника медицинской реабилитации (КМР)"]
[null,null,null,null,null,null,null,null,"Клиника пропедевтической терапии (КПТ)"]
[null,null,null,null,null,null,null,null,"Клиника пропедевтической хирургии (КПХ)"]
[null,null,null,null,null,null,null,null,"Клиника терапевтической стоматологии (КТС)"]
[null,null,null,null,null,null,null,null,"Клиника травматологии и ортопедии (КТО)"]
[null,null,null,null,null,null,null,null,"Клиника факультетской терапии (КФТ)"]
[null,null,null,null,null,null,null,null,"Клиника факультетской хирургии (КФХ)"]
[null,null,null,null,null,null,null,null,"Клиника хирургической стоматологии (КХС)"]
[null,null,null,null,null,null,null,null,"Клинико-диагностическая лаборатория"]
[null,null,null,null,null,null,null,null,"Клинический отдел лабораторной диагностики"]
[null,null,null,null,null,null,null,null,"Клинический отдел лучевой диагностики"]
[null,null,null,null,null,null,null,null,"Клинический отдел патологической анатомии"]
[null,null,null,null,null,null,null,null,"Клинический отдел фармакологии"]
[null,null,null,null,null,null,null,null,"Клиническое отделение"]
[null,null,null,null,null,null,null,null,"Колопроктологическое отделение КГХ"]
[null,null,null,null,null,null,null,null,"Конструкторский отдел"]
[null,null,null,null,null,null,null,null,"Кухня (Пищеблок Клиник)"]
[null,null,null,null,null,null,null,null,"Лаборатория «Социально-психологических исследований»"]
[null,null,null,null,null,null,null,null,"Лаборатория гемостазиологии"]
[null,null,null,null,null,null,null,null,"Лаборатория гемоцитологии"]
[null,null,null,null,null,null,null,null,"Лаборатория гигиены питания"]
[null,null,null,null,null,null,null,null,"Лаборатория клинической бактериологии, микологии и антибиотической терапии"]
[null,null,null,null,null,null,null,null,"Лаборатория клинической биохимии"]
[null,null,null,null,null,null,null,null,"Лаборатория клинической иммунологии"]
[null,null,null,null,null,null,null,null,"Лаборатория клинической иммунологии"]
[null,null,null,null,null,null,null,null,"Лаборатория лимфопролиферативных и редких заболеваний крови"]
[null,null,null,null,null,null,null,null,"Лаборатория методов восстановительного лечения"]
[null,null,null,null,null,null,null,null,"Лаборатория нейроинтерфейсов"]
[null,null,null,null,null,null,null,null,"Лаборатория образовательных проектов"]
[null,null,null,null,null,null,null,null,"Лаборатория оздоровительных технологий и спортивной медицины"]
[null,null,null,null,null,null,null,null,"Лаборатория онкогематологии"]
[null,null,null,null,null,null,null,null,"Лаборатория прикладной нейрофизиологии"]
[null,null,null,null,null,null,null,null,"Лаборатория радиоизотопной диагностики"]
[null,null,null,null,null,null,null,null,"Лаборатория санаторно-курортного лечения"]
[null,null,null,null,null,null,null,null,"Лаборатория санитарно-химических методов исследования"]
[null,null,null,null,null,null,null,null,"Лаборатория систем анализа и обработки медицинских данных"]
[null,null,null,null,null,null,null,null,"Лаборатория технологий дополненной реальности"]
[null,null,null,null,null,null,null,null,"Лаборатория трехмерного моделирования"]
[null,null,null,null,null,null,null,null,"Лидирующий исследовательский центр"]
[null,null,null,null,null,null,null,null,"Материальный отдел"]
[null,null,null,null,null,null,null,null,"Материальный отдел Клиники"]
[null,null,null,null,null,null,null,null,"Мультипрофильный аккредитационно-симуляционный центр"]
[null,null,null,null,null,null,null,null,"Научно-исследовательский институт гематологии, трансфузиологии и интенсивной терапии"]
[null,null,null,null,null,null,null,null,"Научно-исследовательский институт гигиены"]
[null,null,null,null,null,null,null,null,"Научно-исследовательский институт глазных болезней СамГМУ"]
[null,null,null,null,null,null,null,null,"Научно-исследовательский институт кардиологии"]
[null,null,null,null,null,null,null,null,"Научно-образовательный центр «Аддитивные технологии в медицине»"]
[null,null,null,null,null,null,null,null,"Научно-образовательный центр «Медицинские диагностические микросистемы»"]
[null,null,null,null,null,null,null,null,"Научно-образовательный центр доказательной медицины"]
[null,null,null,null,null,null,null,null,"Научно-производственный технопарк СамГМУ"]
[null,null,null,null,null,null,null,null,"Научно-производственный центр «Самарский банк тканей»"]
[null,null,null,null,null,null,null,null,"Нефрологический центр"]
[null,null,null,null,null,null,null,null,"Нефрологическое отделение"]
[null,null,null,null,null,null,null,null,"НИИ восстановительной медицины и реабилитации СамГМУ"]
[null,null,null,null,null,null,null,null,"Общебольничный медицинский персонал"]
[null,null,null,null,null,null,null,null,"Общебольничный немедицинский персонал"]
[null,null,null,null,null,null,null,null,"Операционное отделение"]
[null,null,null,null,null,null,null,null,"Организационно-методический отдел Клиник"]
[null,null,null,null,null,null,null,null,"Организационно-аналитический отдел"]
[null,null,null,null,null,null,null,null,"Отдел «Стартап-центр»"]
[null,null,null,null,null,null,null,null,"Отдел анализа и обработки медицинских данных и систем СППВР"]
[null,null,null,null,null,null,null,null,"Отдел веб-разработки"]
[null,null,null,null,null,null,null,null,"Отдел визового и миграционного сопровождения"]
[null,null,null,null,null,null,null,null,"Отдел виртуальных технологий"]
[null,null,null,null,null,null,null,null,"Отдел внебюджетной деятельности и медицинского туризма"]
[null,null,null,null,null,null,null,null,"Отдел высокопроизводительных вычислений и технологий искусственного интеллекта в медицине"]
[null,null,null,null,null,null,null,null,"Отдел добровольного медицинского страхования и работы с корпоративными клиентами"]
[null,null,null,null,null,null,null,null,"Отдел документационного обеспечения"]
[null,null,null,null,null,null,null,null,"Отдел документационного обеспечения Клиник"]
[null,null,null,null,null,null,null,null,"Отдел иммунологии и молекулярной генетики ИЭМБ"]
[null,null,null,null,null,null,null,null,"Отдел информационных технологий"]
[null,null,null,null,null,null,null,null,"Отдел кадров по персоналу Клиник"]
[null,null,null,null,null,null,null,null,"Отдел кадров по персоналу подразделений управления, учебного процесса и науки"]
[null,null,null,null,null,null,null,null,"Отдел клинических исследований"]
[null,null,null,null,null,null,null,null,"Отдел контроля качества медицинской деятельности"]
[null,null,null,null,null,null,null,null,"Отдел координации и мониторинга НИР"]
[null,null,null,null,null,null,null,null,"Отдел лицензирования и аккредитации"]
[null,null,null,null,null,null,null,null,"Отдел лучевой диагностики"]
[null,null,null,null,null,null,null,null,"Отдел маркетинга"]
[null,null,null,null,null,null,null,null,"Отдел международного сотрудничества и образования"]
[null,null,null,null,null,null,null,null,"Отдел молодых ученых"]
[null,null,null,null,null,null,null,null,"Отдел нейроинтерфейсов и прикладной нейрофизиологии"]
[null,null,null,null,null,null,null,null,"Отдел обеспечения учебного процесса"]
[null,null,null,null,null,null,null,null,"Отдел обеспечения учета и выпуска обучающихся"]
[null,null,null,null,null,null,null,null,"Отдел организации закупочных мероприятий"]
[null,null,null,null,null,null,null,null,"Отдел организации закупочных мероприятий"]
[null,null,null,null,null,null,null,null,"Отдел охраны Клиник"]
[null,null,null,null,null,null,null,null,"Отдел по специальной работе"]
[null,null,null,null,null,null,null,null,"Отдел по управлению и защите интеллектуальной собственности"]
[null,null,null,null,null,null,null,null,"Отдел подготовки научно-педагогических кадров"]
[null,null,null,null,null,null,null,null,"Отдел пресс-службы"]
[null,null,null,null,null,null,null,null,"Отдел проектного менеджмента, производства и инжиниринга"]
[null,null,null,null,null,null,null,null,"Отдел развития и сопровождения медицинских информационных систем"]
[null,null,null,null,null,null,null,null,"Отдел разработки медицинских навигационных систем"]
[null,null,null,null,null,null,null,null,"Отдел разработки нейрореабилитационных проектов"]
[null,null,null,null,null,null,null,null,"Отдел рекрутинга и академической мобильности"]
[null,null,null,null,null,null,null,null,"Отдел системного администрирования и защиты информации"]
[null,null,null,null,null,null,null,null,"Отдел сопровождения грантовой и договорной деятельности"]
[null,null,null,null,null,null,null,null,"Отдел телемедицинских сервисов"]
[null,null,null,null,null,null,null,null,"Отдел трансфера технологий"]
[null,null,null,null,null,null,null,null,"Отдел учета результатов закупочной деятельности и отчетности"]
[null,null,null,null,null,null,null,null,"Отдел учёта результатов закупочной деятельности и отчётности"]
[null,null,null,null,null,null,null,null,"Отдел хозяйственного и материально-технического снабжения"]
[null,null,null,null,null,null,null,null,"Отдел экспериментальной морфологии"]
[null,null,null,null,null,null,null,null,"Отдел экспертиз и мониторинга качества"]
[null,null,null,null,null,null,null,null,"Отделение анестезиологии-реанимации"]
[null,null,null,null,null,null,null,null,"Отделение гематологии (гематологии и химиотерапии) №1 КГТ"]
[null,null,null,null,null,null,null,null,"Отделение гематологии (гематологии и химиотерапии) №2 КГТ"]
[null,null,null,null,null,null,null,null,"Отделение гемодиализа"]
[null,null,null,null,null,null,null,null,"Отделение гравитационной терапии"]
[null,null,null,null,null,null,null,null,"Отделение инфекционной безопасности и гигиены"]
[null,null,null,null,null,null,null,null,"Отделение клинических исследований"]
[null,null,null,null,null,null,null,null,"Отделение клинической психологии и психотерапии"]
[null,null,null,null,null,null,null,null,"Отделение Клинической фармакологии"]
[null,null,null,null,null,null,null,null,"Отделение медицинской статистики"]
[null,null,null,null,null,null,null,null,"Отделение переливания крови КГТ"]
[null,null,null,null,null,null,null,null,"Отделение пульмонологии и аллергологии КФТ"]
[null,null,null,null,null,null,null,null,"Отделение реабилитации"]
[null,null,null,null,null,null,null,null,"Отделение реанимации и интенсивной терапии"]
[null,null,null,null,null,null,null,null,"Отделение реконструктивной и пластической хирургии"]
[null,null,null,null,null,null,null,null,"Отделение рентгенохирургических методов диагностики и лечения КФХ"]
[null,null,null,null,null,null,null,null,"Отделение сосудистой хирургии КГХ"]
[null,null,null,null,null,null,null,null,"Отделение сосудистой хирургии №1 КФХ"]
[null,null,null,null,null,null,null,null,"Отделение сосудистой хирургии №2 КФХ"]
[null,null,null,null,null,null,null,null,"Отделение стоматологии клиники терапевтической стоматологии (КТС)"]
[null,null,null,null,null,null,null,null,"Отделение ультразвуковой диагностики"]
[null,null,null,null,null,null,null,null,"Отделение функциональной диагностики"]
[null,null,null,null,null,null,null,null,"Отделение челюстно-лицевой хирургии (КХС)"]
[null,null,null,null,null,null,null,null,"Отделение эндокринологии и остеопороза"]
[null,null,null,null,null,null,null,null,"Оториноларингологическое отделение"]
[null,null,null,null,null,null,null,null,"Патологоанатомическое отделение"]
[null,null,null,null,null,null,null,null,"Планово-финансовое управление"]
[null,null,null,null,null,null,null,null,"Планово-финансовое управление"]
[null,null,null,null,null,null,null,null,"Правовое управление"]
[null,null,null,null,null,null,null,null,"Прачечная Клиники"]
[null,null,null,null,null,null,null,null,"Приемное отделение КФТ"]
[null,null,null,null,null,null,null,null,"Проектный офис по бережливым технологиям"]
[null,null,null,null,null,null,null,null,"Производственный отдел"]
[null,null,null,null,null,null,null,null,"Расчетный отдел"]
[null,null,null,null,null,null,null,null,"Расчетный отдел Клиники"]
[null,null,null,null,null,null,null,null,"Редакционно-издательский отдел"]
[null,null,null,null,null,null,null,null,"Редакция многотиражной газеты «Медик»"]
[null,null,null,null,null,null,null,null,"Ректорат"]
[null,null,null,null,null,null,null,null,"Ремонтная служба Клиник"]
[null,null,null,null,null,null,null,null,"Ремонтно-эксплуатационный участок"]
[null,null,null,null,null,null,null,null,"Рентгеновское отделение"]
[null,null,null,null,null,null,null,null,"Самарский хирургический центр координации органного донорства"]
[null,null,null,null,null,null,null,null,"Самарский центр трансплантации органов и тканей"]
[null,null,null,null,null,null,null,null,"Секретариат ученого совета и диссертационных советов"]
[null,null,null,null,null,null,null,null,"Служба обеспечения хозяйственной деятельности и благоустройства"]
[null,null,null,null,null,null,null,null,"Служба охраны труда"]
[null,null,null,null,null,null,null,null,"Служба охраны труда Клиник"]
[null,null,null,null,null,null,null,null,"Специализированный консультативно-диагностический центр"]
[null,null,null,null,null,null,null,null,"Стационарное отделение медицинской реабилитации пациентов с нарушениями функций опорно-двигательной и периферической нервной систем"]
[null,null,null,null,null,null,null,null,"Стоматологический институт"]
[null,null,null,null,null,null,null,null,"Теплоэнергетическая и сантехническая служба"]
[null,null,null,null,null,null,null,null,"Терапевтическое отделение КФТ"]
[null,null,null,null,null,null,null,null,"Травматолого-ортопедическое отделение №1 КТО"]
[null,null,null,null,null,null,null,null,"Травматолого-ортопедическое отделение №2 КТО"]
[null,null,null,null,null,null,null,null,"Транспортная служба"]
[null,null,null,null,null,null,null,null,"Управление бухгалтерского учета и финансового контроля"]
[null,null,null,null,null,null,null,null,"Управление бухгалтерского учета и финансового контроля"]
[null,null,null,null,null,null,null,null,"Управление закупок (Контрактная служба)"]
[null,null,null,null,null,null,null,null,"Управление закупок (Контрактная служба)"]
[null,null,null,null,null,null,null,null,"Управление информационных технологий"]
[null,null,null,null,null,null,null,null,"Управление кадров"]
[null,null,null,null,null,null,null,null,"Управление международных отношений"]
[null,null,null,null,null,null,null,null,"Управление мониторинга качества"]
[null,null,null,null,null,null,null,null,"Управление научных исследований и подготовки научно-педагогических кадров"]
[null,null,null,null,null,null,null,null,"Управление по связям с общественностью"]
[null,null,null,null,null,null,null,null,"Учебно-методический отдел"]
[null,null,null,null,null,null,null,null,"Учебно-методическое управление"]
[null,null,null,null,null,null,null,null,"Учебное управление"]
[null,null,null,null,null,null,null,null,"Финансовый отдел"]
[null,null,null,null,null,null,null,null,"Финансовый отдел Клиники"]
[null,null,null,null,null,null,null,null,"Хирургическое отделение КГХ"]
[null,null,null,null,null,null,null,null,"Хирургическое отделение пересадки органов"]
[null,null,null,null,null,null,null,null,"Хирургическое отделение №1 КПХ"]
[null,null,null,null,null,null,null,null,"Хирургическое отделение №1 КФХ"]
[null,null,null,null,null,null,null,null,"Хирургическое отделение №2 КПХ"]
[null,null,null,null,null,null,null,null,"Хирургическое отделение №2 КФХ"]
[null,null,null,null,null,null,null,null,"Центр бережливых технологий и управления качеством в здравоохранении"]
[null,null,null,null,null,null,null,null,"Центр инновационных образовательных технологий"]
[null,null,null,null,null,null,null,null,"Центр информационно-технического обеспечения"]
[null,null,null,null,null,null,null,null,"Центр питания «Медик»"]
[null,null,null,null,null,null,null,null,"Центр прорывных исследований «Информационные технологии в медицине»"]
[null,null,null,null,null,null,null,null,"Центр разработки и сопровождения образовательных информационных систем"]
[null,null,null,null,null,null,null,null,"Эксплуатационно-технический отдел"]
[null,null,null,null,null,null,null,null,"Электронный отдел"]
[null,null,null,null,null,null,null,null,"Электротехническая служба Клиники"]
[null,null,null,null,null,null,null,null,"Эндоскопическое отделение КПХ"]

{"sheet":"Для заполнения","index":1,"n_rows":31,"n_cols":7,"rows_kept":31,"cut":false,"hidden":false,"merged":[[15,1,17,1],[16,2,17,2]]}
[null,"Поле","Инструкции","Значение"]
[1,"Табельный номер сотрудника","выберите из списка",111111]
[2,"ФИО сотрудника","заполните самостоятельно","Бутейко Анна Александровна","ПАДЕЖ","авт"]
[null,"ФИО сотрудника в родительном падеже","проверьте и при необходимости исправьте",{"$f":"GENITIVECASE('Для заполнения'!D3)","v":"Бутейко Анны Александровны"}]
[null,"Наименование организации","автоматическое заполнение ",{"$f":"Справочники!A2","v":"ФГБОУ ВО СамГМУ Минздрава России"},null,"авт от ТН"]
[3,"Структурное подразделение","заполните самостоятельно","Кафедра физиологии с курсом безопасности жизнедеятельности и медицины катастроф","Готово","авт"]
[4,"Должность сотрудника","заполните самостоятельно","заведующий кафедрой","Готово","авт"]
[null,"Полное название должности и подразделения в родительном падеже","проверьте и при необходимости исправьте",{"$f":"Расчеты!$B$190","v":"заведующего кафедрой физиологии с курсом безопасности жизнедеятельности и медицины катастроф"}]
[6,"Основание для командировки","заполните самостоятельно","Приглашение на Всероссийскую научную конференцию","Готово","сам"]
[7,"Место назначения","заполните самостоятельно","г. Москва","Готово","сам"]
[8,"Организация","заполните самостоятельно","ФГАУ НМИЦ нейрохирургии имени академика Н. Н. Бурденко Минздрава РФ","Готово","сам"]
[9,"Дата отправления в командировку","заполните самостоятельно","2020-01-31","Готово","сам"]
[10,"Дата приезда","заполните самостоятельно","2020-02-04","Готово","сам"]
[null,"Количество календарных дней в командировке","автоматическое заполнение ",{"$f":"D13-D12+1","v":5}]
[null,"Срок командировки, не считая времени нахождения в пути (календарных дней)","заполните самостоятельно",5,"Готово","сам"]
[11,"Содержание задания (цель) командировки","заполните самостоятельно","Участие во Всероссийской научной конференции","Готово","сам"]
[null,null,"заполните самостоятельно при необходимости"]
[]
[13,"На время комадировки возложить обязанности на ФИО\n(в винительном падеже, с предлогом)","заполните самостоятельно,\nтолько для руководителей подразделений\n\nпри замещении по нескольким должностям, укажите должность перед ФИО заместителя, например «по должности заведующего центром на Петрову Ксению Владиславовну, по должности заведующего лабораторией на Иванова Петра Ивановича»","на Петрову Ксению Владиславовну",null,"сам"]
[null,"Даты выходных дней в командировке","автоматическое заполнение",{"$f":"Расчеты!B95","v":"01.02.2020, 02.02.2020"}]
[14,"Вид компенсации выходных дней\n(по ст. 153 ТК РФ)","выберите из списка, если в командировке будут выходные дни","Другой день отдыха","Готово","вспл.список"]
[null,"Даты отгулов","заполните самостоятельно, если в командировке будут выходные дни, и в списке выше Вы выбрали «Другой день отдыха»","06.02.2020, 07.02.2020"]
[15,"Наименование второй должности и подразделения (при наличии)","заполните самостоятельно","лаборант лаборатории социально-психологических исследований","Доработать не в Excel"]
[null,"Вид заявления по второму месту работы (при наличии)","выберите из списка","Дополнительные выходные дни в счёт очередного оплачиваемого отпуска"]
[null,"Принимающая сторона оплачивает","выберите из списка","Ничего"]
[16,"Общая сумма аванса","автоматическое заполнение",{"$f":"SUM(D27:D29)","v":2300},"Готово","авт"]
[17,"Аванс на проезд (при наличии)","укажите сумму цифрами при необходимости",600,"Готово","сам"]
[18,"Аванс на проживание (при наличии)","укажите сумму цифрами при необходимости",800,"Готово","сам"]
[19,"Аванс на суточные (при наличии)","укажите сумму цифрами при необходимости",900,"Готово","сам"]
[22,"Дата оформления документов","автоматическое заполнение",{"$f":"TODAY()","v":"2020-03-04"},"Готово"]
[25,"Дата авансового отчёта о командировке","автоматическое заполнение ",{"$f":"WORKDAY(D13,3)","v":"2020-02-07"},"Готово",null,"(считается + 3 раб дня от строки 6)"]

{"sheet":"Служебное задание","index":2,"n_rows":39,"n_cols":149,"rows_kept":39,"cut":false,"hidden":false,"merged":[[38,116,38,118],[38,122,38,136],[38,137,38,140],[38,141,38,143],[33,118,33,166],[34,85,34,166],[36,15,36,48],[36,50,36,61],[36,63,36,82],[36,114,36,132],[36,134,36,145],[36,147,36,166],[37,15,37,48],[37,49,37,62],[37,63,37,82],[37,114,37,132],[37,133,37,146],[37,147,37,166],[26,0,26,83],[26,84,26,166],[28,84,28,166],[29,84,29,166],[31,29,31,48],[31,50,31,61],[31,63,31,82],[31,95,31,117],[32,29,32,48],[32,49,32,62],[32,63,32,82],[32,95,32,117],[20,148,20,166],[22,0,22,83],[22,84,22,166],[23,0,23,83],[23,84,23,166],[24,0,24,83],[24,84,24,166],[25,0,25,83],[25,84,25,166],[20,0,20,22],[20,23,20,45],[20,46,20,64],[20,65,20,83],[20,84,20,90],[20,91,20,105],[20,106,20,116],[20,117,20,128],[20,129,20,147],[18,148,18,166],[19,0,19,22],[19,23,19,45],[19,46,19,64],[19,65,19,83],[19,84,19,90],[19,91,19,105],[19,106,19,116],[19,117,19,128],[19,129,19,147],[19,148,19,166],[18,0,18,22],[18,23,18,45],[18,46,18,64],[18,65,18,83],[18,84,18,90],[18,91,18,105],[18,106,18,116],[18,117,18,128],[18,129,18,147],[16,148,16,166],[17,0,17,22],[17,23,17,45],[17,46,17,64],[17,65,17,83],[17,84,17,90],[17,91,17,105],[17,106,17,116],[17,117,17,128],[17,129,17,147],[17,148,17,166],[16,0,16,22],[16,23,16,45],[16,46,16,64],[16,65,16,83],[16,84,16,90],[16,91,16,105],[16,106,16,116],[16,117,16,128],[16,129,16,147],[8,0,8,166],[9,148,9,166],[10,0,10,147],[10,148,10,166],[11,0,11,147],[13,0,15,22],[13,23,15,45],[13,46,13,147],[13,148,15,166],[14,46,14,83],[14,84,14,105],[14,106,14,128],[14,129,15,147],[15,46,15,64],[15,65,15,83],[15,84,15,90],[15,91,15,105],[15,106,15,116],[15,117,15,128],[0,123,0,166],[2,148,2,166],[3,0,3,134],[3,148,3,166],[4,0,4,134],[4,148,4,166],[6,102,6,120],[6,121,6,139],[7,102,7,120],[7,121,7,139]]}
[null,null,null,null,null,null,null,null,null,null,null,null,null,null,null,null,null,null,null,null,null,null,null,null,null,null,null,null,null,null,null,null,null,null,null,null,null,null,null,null,null,null,null,null,null,null,null,null,null,null,null,null,null,null,null,null,null,null,null,null,null,null,null,null,null,null,null,null,null,null,null,null,null,null,null,null,null,null,null,null,null,null,null,null,null,null,null,null,null,null,null,null,null,null,null,null,null,null,null,null,null,null,null,null,null,null,null,null,null,null,null,null,null,null,null,null,null,null,null,null,null,null,null,"Унифицированная форма № Т-10а\nУтверждена Постановлением Госкомстата России\nот 05.01.2004 № 1"]
[]
[null,null,null,null,null,null,null,null,null,null,null,null,null,null,null,null,null,null,null,null,null,null,null,null,null,null,null,null,null,null,null,null,null,null,null,null,null,null,null,null,null,null,null,null,null,null,null,null,null,null,null,null,null,null,null,null,null,null,null,null,null,null,null,null,null,null,null,null,null,null,null,null,null,null,null,null,null,null,null,null,null,null,null,null,null,null,null,null,null,null,null,null,null,null,null,null,null,null,null,null,null,null,null,null,null,null,null,null,null,null,null,null,null,null,null,null,null,null,null,null,null,null,null,null,null,null,null,null,null,null,null,null,null,null,null,null,null,null,null,null,null,null,null,null,null,null,"Форма по ОКУД",null,"Код"]
[{"$f":"'Для заполнения'!D5","v":"ФГБОУ ВО СамГМУ Минздрава России"},null,null,null,null,null,null,null,null,null,null,null,null,null,null,null,null,null,null,null,null,null,null,null,null,null,null,null,null,null,null,null,null,null,null,null,null,null,null,null,null,null,null,null,null,null,null,null,null,null,null,null,null,null,null,null,null,null,null,null,null,null,null,null,null,null,null,null,null,null,null,null,null,null,null,null,null,null,null,null,null,null,null,null,null,null,null,null,null,null,null,null,null,null,null,null,null,null,null,null,null,null,null,null,null,null,null,null,null,null,null,null,null,null,null,null,null,null,null,null,null,null,null,null,null,null,null,null,null,null,null,null,null,null,null,null,null,null,null,null,null,null,null,null,null,null,"по ОКПО",null,"0301025"]
["(наименование организации)"]
[]
[null,null,null,null,null,null,null,null,null,null,null,null,null,null,null,null,null,null,null,null,null,null,null,null,null,null,null,null,null,null,null,null,null,null,null,null,null,null,null,null,null,null,null,null,null,null,null,null,null,null,null,null,null,null,null,null,null,null,null,null,null,null,null,null,null,null,null,null,null,null,null,null,null,null,null,null,null,null,null,null,null,null,null,null,null,null,null,null,null,null,null,null,null,null,null,null,null,null,null,null,null,null,"Номер документа",null,null,null,null,null,null,null,null,null,null,null,null,null,null,null,null,null,null,"Дата составления"]
[null,null,null,null,null,null,null,null,null,null,null,null,null,null,null,null,null,null,null,null,null,null,null,null,null,null,null,null,null,null,null,null,null,null,null,null,null,null,null,null,null,null,null,null,null,null,null,null,null,null,null,null,null,null,null,null,null,null,null,null,null,null,null,null,null,null,null,null,null,null,null,null,null,null,null,null,null,null,null,null,null,null,null,null,null,null,null,null,null,null,null,null,null,null,null,null,null,null,null,null,"СЛУЖЕБНОЕ ЗАДАНИЕ",null,null,null,null,null,null,null,null,null,null,null,null,null,null,null,null,null,null,null,null,{"$f":"'Для заполнения'!D30","v":"2020-03-04"}]
["для направления в командировку и отчет о его выполнении"]
[null,null,null,null,null,null,null,null,null,null,null,null,null,null,null,null,null,null,null,null,null,null,null,null,null,null,null,null,null,null,null,null,null,null,null,null,null,null,null,null,null,null,null,null,null,null,null,null,null,null,null,null,null,null,null,null,null,null,null,null,null,null,null,null,null,null,null,null,null,null,null,null,null,null,null,null,null,null,null,null,null,null,null,null,null,null,null,null,null,null,null,null,null,null,null,null,null,null,null,null,null,null,null,null,null,null,null,null,null,null,null,null,null,null,null,null,null,null,null,null,null,null,null,null,null,null,null,null,null,null,null,null,null,null,null,null,null,null,null,null,null,null,null,null,null,null,null,null,"Табельный номер"]
[{"$f":"'Для заполнения'!D3","v":"Бутейко Анна Александровна"}]
["(фамилия, имя, отчество)"]
[]
["Структурное подразделение",null,null,null,null,null,null,null,null,null,null,null,null,null,null,null,null,null,null,null,null,null,null,"Должность (специальность, профессия)",null,null,null,null,null,null,null,null,null,null,null,null,null,null,null,null,null,null,null,null,null,null,"Командировка",null,null,null,null,null,null,null,null,null,null,null,null,null,null,null,null,null,null,null,null,null,null,null,null,null,null,null,null,null,null,null,null,null,null,null,null,null,null,null,null,null,null,null,null,null,null,null,null,null,null,null,null,null,null,null,null,null,null,null,null,null,null,null,null,null,null,null,null,null,null,null,null,null,null,null,null,null,null,null,null,null,null,null,null,null,null,null,null,null,null,null,null,null,null,null,null,null,null,null,null,null,"Основание"]
[null,null,null,null,null,null,null,null,null,null,null,null,null,null,null,null,null,null,null,null,null,null,null,null,null,null,null,null,null,null,null,null,null,null,null,null,null,null,null,null,null,null,null,null,null,null,"место назначения",null,null,null,null,null,null,null,null,null,null,null,null,null,null,null,null,null,null,null,null,null,null,null,null,null,null,null,null,null,null,null,null,null,null,null,null,null,"дата",null,null,null,null,null,null,null,null,null,null,null,null,null,null,null,null,null,null,null,null,null,"срок\n(календарные дни)",null,null,null,null,null,null,null,null,null,null,null,null,null,null,null,null,null,null,null,null,null,null,"организация-плательщик"]
[null,null,null,null,null,null,null,null,null,null,null,null,null,null,null,null,null,null,null,null,null,null,null,null,null,null,null,null,null,null,null,null,null,null,null,null,null,null,null,null,null,null,null,null,null,null,"страна, город",null,null,null,null,null,null,null,null,null,null,null,null,null,null,null,null,null,null,"организация",null,null,null,null,null,null,null,null,null,null,null,null,null,null,null,null,null,null,"начала",null,null,null,null,null,null,"окончания",null,null,null,null,null,null,null,null,null,null,null,null,null,null,"всего",null,null,null,null,null,null,null,null,null,null,"не считая времени нахождения в пути"]
[1,null,null,null,null,null,null,null,null,null,null,null,null,null,null,null,null,null,null,null,null,null,null,2,null,null,null,null,null,null,null,null,null,null,null,null,null,null,null,null,null,null,null,null,null,null,3,null,null,null,null,null,null,null,null,null,null,null,null,null,null,null,null,null,null,4,null,null,null,null,null,null,null,null,null,null,null,null,null,null,null,null,null,null,5,null,null,null,null,null,null,6,null,null,null,null,null,null,null,null,null,null,null,null,null,null,7,null,null,null,null,null,null,null,null,null,null,8,null,null,null,null,null,null,null,null,null,null,null,9,null,null,null,null,null,null,null,null,null,null,null,null,null,null,null,null,null,null,10]
[{"$f":"'Для заполнения'!D6","v":"Кафедра физиологии с курсом безопасности жизнедеятельности и медицины катастроф"},null,null,null,null,null,null,null,null,null,null,null,null,null,null,null,null,null,null,null,null,null,null,{"$f":"'Для заполнения'!D7","v":"заведующий кафедрой"},null,null,null,null,null,null,null,null,null,null,null,null,null,null,null,null,null,null,null,null,null,null,{"$f":"'Для заполнения'!D10","v":"г. Москва"},null,null,null,null,null,null,null,null,null,null,null,null,null,null,null,null,null,null,{"$f":"'Для заполнения'!D11","v":"ФГАУ НМИЦ нейрохирургии имени академика Н. Н. Бурденко Минздрава РФ"},null,null,null,null,null,null,null,null,null,null,null,null,null,null,null,null,null,null,{"$f":"'Для заполнения'!D12","v":"2020-01-31"},null,null,null,null,null,null,{"$f":"'Для заполнения'!D13","v":"2020-02-04"},null,null,null,null,null,null,null,null,null,null,null,null,null,null,{"$f":"(CN18-CG18)+1","v":5},null,null,null,null,null,null,null,null,null,null,{"$f":"'Для заполнения'!D15","v":5},null,null,null,null,null,null,null,null,null,null,null,{"$f":"IF('Для заполнения'!$D$25=\"Ничего\",$A$4,IF('Для заполнения'!D25=\"Только проезд\",\"Проезд: принимающая сторона, проживание: \"&$A$4,IF('Для заполнения'!$D$25=\"Только проживание\",\"Проезд: \"&$A$4&\", проживание: принимающая сторона\",\"Проезд и проживание: принимающая сторона\")))","v":"ФГБОУ ВО СамГМУ Минздрава России"},null,null,null,null,null,null,null,null,null,null,null,null,null,null,null,null,null,null,{"$f":"'Для заполнения'!D9","v":"Приглашение на Всероссийскую научную конференцию"}]
[]
[]
[]
[]
["Содержание задания (цель)",null,null,null,null,null,null,null,null,null,null,null,null,null,null,null,null,null,null,null,null,null,null,null,null,null,null,null,null,null,null,null,null,null,null,null,null,null,null,null,null,null,null,null,null,null,null,null,null,null,null,null,null,null,null,null,null,null,null,null,null,null,null,null,null,null,null,null,null,null,null,null,null,null,null,null,null,null,null,null,null,null,null,null,"Краткий отчет о выполнении задания"]
[11,null,null,null,null,null,null,null,null,null,null,null,null,null,null,null,null,null,null,null,null,null,null,null,null,null,null,null,null,null,null,null,null,null,null,null,null,null,null,null,null,null,null,null,null,null,null,null,null,null,null,null,null,null,null,null,null,null,null,null,null,null,null,null,null,null,null,null,null,null,null,null,null,null,null,null,null,null,null,null,null,null,null,null,"12"]
[{"$f":"IF('Для заполнения'!D16<>\"\",'Для заполнения'!D16,\"\")","v":"Участие во Всероссийской научной конференции"}]
[{"$f":"IF('Для заполнения'!D17<>\"\",'Для заполнения'!D17,\"\")","v":""}]
[{"$f":"IF('Для заполнения'!D18<>\"\",'Для заполнения'!D18,\"\")","v":""}]
[]
[null,null,null,null,null,null,null,null,null,null,null,null,null,null,null,null,null,null,null,null,null,null,null,null,null,null,null,null,null,null,null,null,null,null,null,null,null,null,null,null,null,null,null,null,null,null,null,null,null,null,null,null,null,null,null,null,null,null,null,null,null,null,null,null,null,null,null,null,null,null,null,null,null,null,null,null,null,null,null,null,null,null,null,null,{"$f":"IF('Для заполнения'!$D$19<>\"\",CONCATENATE(\"Прошу возложить исполнение моих обязанностей \",'Для заполнения'!$D$19,\".\"),\"\")","v":"Прошу возложить исполнение моих обязанностей на Петрову Ксению Владиславовну."}]
[null,null,null,null,null,null,null,null,null,null,null,null,null,null,null,null,null,null,null,null,null,null,null,null,null,null,null,null,null,null,null,null,null,null,null,null,null,null,null,null,null,null,null,null,null,null,null,null,null,null,null,null,null,null,null,null,null,null,null,null,null,null,null,null,null,null,null,null,null,null,null,null,null,null,null,null,null,null,null,null,null,null,null,null,{"$f":"IF('Для заполнения'!$D$20<>\"\",CONCATENATE(Расчеты!$E$193,\" с привлечением к работе в \",Расчеты!$B$97,\" (\",'Для заполнения'!$D$20,IF('Для заполнения'!$D$21=\"Другой день отдыха\",CONCATENATE(\"), и прошу предоставить \",Расчеты!$B$98,\" (\",'Для заполнения'!$D$22,\")\"),\") с оплатой в повышенном размере\"),\", в соответствии со статьей 153 ТК РФ.\"),\"\")","v":"Согласна с привлечением к работе в выходные дни (01.02.2020, 02.02.2020), и прошу предоставить другие дни отдыха (06.02.2020, 07.02.2020), в соответствии со статьей 153 ТК РФ."}]
["Руководитель"]
["структурного подразделения",null,null,null,null,null,null,null,null,null,null,null,null,null,null,null,null,null,null,null,null,null,null,null,null,null,null,null,null,null,null,null,null,null,null,null,null,null,null,null,null,null,null,null,null,null,null,null,null,null,null,null,null,null,null,null,null,null,null,null,null,null,null,null,null,null,null,null,null,null,null,null,null,null,null,null,null,null,null,null,null,null,null,null,null,"Работник"]
[null,null,null,null,null,null,null,null,null,null,null,null,null,null,null,null,null,null,null,null,null,null,null,null,null,null,null,null,null,"(должность)",null,null,null,null,null,null,null,null,null,null,null,null,null,null,null,null,null,null,null,"(личная подпись)",null,null,null,null,null,null,null,null,null,null,null,null,null,"(расшифровка подписи)",null,null,null,null,null,null,null,null,null,null,null,null,null,null,null,null,null,null,null,null,null,null,null,null,null,null,null,null,null,null,null,"(личная подпись)"]
[null,null,null,null,null,null,null,null,null,null,null,null,null,null,null,null,null,null,null,null,null,null,null,null,null,null,null,null,null,null,null,null,null,null,null,null,null,null,null,null,null,null,null,null,null,null,null,null,null,null,null,null,null,null,null,null,null,null,null,null,null,null,null,null,null,null,null,null,null,null,null,null,null,null,null,null,null,null,null,null,null,null,null,null,null,"Заключение о выполнении задания"]
[]
["Руководитель ",null,null,null,null,null,null,null,null,null,null,null,null,null,null,null,null,null,null,null,null,null,null,null,null,null,null,null,null,null,null,null,null,null,null,null,null,null,null,null,null,null,null,null,null,null,null,null,null,null,null,null,null,null,null,null,null,null,null,null,null,null,null,null,null,null,null,null,null,null,null,null,null,null,null,null,null,null,null,null,null,null,null,null,null,"Руководитель"]
["организации",null,null,null,null,null,null,null,null,null,null,null,null,null,null,null,null,null,null,null,null,null,null,null,null,null,null,null,null,null,null,null,null,null,null,null,null,null,null,null,null,null,null,null,null,null,null,null,null,null,null,null,null,null,null,null,null,null,null,null,null,null,null,null,null,null,null,null,null,null,null,null,null,null,null,null,null,null,null,null,null,null,null,null,null,"структурного подразделения"]
[null,null,null,null,null,null,null,null,null,null,null,null,null,null,null,"(должность)",null,null,null,null,null,null,null,null,null,null,null,null,null,null,null,null,null,null,null,null,null,null,null,null,null,null,null,null,null,null,null,null,null,"(личная подпись)",null,null,null,null,null,null,null,null,null,null,null,null,null,"(расшифровка подписи)",null,null,null,null,null,null,null,null,null,null,null,null,null,null,null,null,null,null,null,null,null,null,null,null,null,null,null,null,null,null,null,null,null,null,null,null,null,null,null,null,null,null,null,null,null,null,null,null,null,null,"(должность)",null,null,null,null,null,null,null,null,null,null,null,null,null,null,null,null,null,null,"(личная подпись)",null,null,null,null,null,null,null,null,null,null,null,null,null,"(расшифровка подписи)"]
[null,null,null,null,null,null,null,null,null,null,null,null,null,null,null,null,null,null,null,null,null,null,null,null,null,null,null,null,null,null,null,null,null,null,null,null,null,null,null,null,null,null,null,null,null,null,null,null,null,null,null,null,null,null,null,null,null,null,null,null,null,null,null,null,null,null,null,null,null,null,null,null,null,null,null,null,null,null,null,null,null,null,null,null,null,null,null,null,null,null,null,null,null,null,null,null,null,null,null,null,null,null,null,null,null,null,null,null,null,null,null,null,null,null,null,"\"",null,null,null,"\" ",null,null,null,null,null,null,null,null,null,null,null,null,null,null,null,null,null,20,null,null,null,null,null,null,null,"г."]

{"sheet":"Заявление на аванс","index":3,"n_rows":28,"n_cols":6,"rows_kept":28,"cut":false,"hidden":false,"merged":[[6,1,6,5],[7,1,7,5],[19,3,19,5],[24,3,24,5],[1,3,1,5],[2,3,2,5],[3,3,3,5],[4,1,4,5],[5,1,5,5]]}
[]
[null,null,null,"Ректору Самарского государственного медицинского университета, профессору РАН,\nКолсанову Александру Владимировичу"]
[null,null,null,{"$f":"CONCATENATE(GENITIVECASE('Для заполнения'!$D$3),\",\")","v":"Бутейко Анны Александровны,"}]
[null,null,null,{"$f":"'Для заполнения'!D8","v":"заведующего кафедрой физиологии с курсом безопасности жизнедеятельности и медицины катастроф"}]
[]
[null,"Заявление"]
[]
[null,{"$f":"CONCATENATE(\"Прошу перечислить мне на зарплатную карту под отчет на командировочные расходы денежные средства на срок до \",Расчеты!H210)","v":"Прошу перечислить мне на зарплатную карту под отчет на командировочные расходы денежные средства на срок до 7.02.2020"}]
[]
[null,{"$f":"CONCATENATE(\"в размере \", 'Для заполнения'!$D$26,\" руб. (\",СУММАПРОПИСЬЮ('Для заполнения'!$D$26),\"рублей), из них:\")","v":"в размере 2300 руб. (две тысячи триста рублей), из них:"}]
[null,{"$f":"CONCATENATE(\"на покупку билетов: \",'Для заполнения'!$D$27,\" руб. (\",СУММАПРОПИСЬЮ('Для заполнения'!$D$27),\"рублей),\")","v":"на покупку билетов: 600 руб. (шестьсот рублей),"}]
[null,{"$f":"CONCATENATE(\"на оплату проживания: \",'Для заполнения'!$D$28,\" руб. (\",СУММАПРОПИСЬЮ('Для заполнения'!$D$28),\"рублей),\")","v":"на оплату проживания: 800 руб. (восемьсот рублей),"}]
[null,{"$f":"CONCATENATE(\"суточные: \",'Для заполнения'!$D$29,\" руб. (\",СУММАПРОПИСЬЮ('Для заполнения'!$D$29),\"рублей).\")","v":"суточные: 900 руб. (девятьсот рублей)."}]
[]
[null,null,null,null,null,{"$f":"CONCATENATE(Расчеты!B210,\" г.\")","v":"4.03.2020 г."}]
[]
[]
[null,null,null,"личная подпись"]
[]
[null,null,null,"Согласовано. Руководитель структурного подразделения:"]
[]
[]
[null,null,null,"личная подпись",null,"расшифровка подписи"]
[]
[null,null,null,"Согласовано. Руководитель организации:"]
[]
[]
[null,null,null,"личная подпись",null,"расшифровка подписи"]

{"sheet":"Заявление для совместителей","index":4,"n_rows":23,"n_cols":6,"rows_kept":23,"cut":false,"hidden":false,"merged":[[6,1,6,5],[7,1,7,5],[14,3,14,5],[19,3,19,5],[1,3,1,5],[2,3,2,5],[3,3,3,5],[4,1,4,5],[5,1,5,5]]}
[]
[null,null,null,"Ректору Самарского государственного медицинского университета, профессору РАН,\nКолсанову Александру Владимировичу"]
[null,null,null,{"$f":"CONCATENATE(GENITIVECASE('Для заполнения'!$D$3),\",\")","v":"Бутейко Анны Александровны,"}]
[null,null,null,{"$f":"Расчеты!T183","v":"лаборанта лаборатории социально-психологических исследований"}]
[]
[null,"Заявление"]
[]
[null,{"$f":"IF('Для заполнения'!$D$24=\"Отпуск без сохранения заработной платы\",Расчеты!$B$203,Расчеты!$B$204)","v":"Прошу предоставить мне дополнительные выходные дни 31.01.2020, 03.02.2020, 04.02.2020 в счёт очередного оплачиваемого отпуска."}]
[]
[null,null,null,null,null,{"$f":"CONCATENATE(Расчеты!B210,\" г.\")","v":"4.03.2020 г."}]
[]
[]
[null,null,null,"личная подпись"]
[]
[null,null,null,"Согласовано. Руководитель структурного подразделения:"]
[]
[]
[null,null,null,"личная подпись",null,"расшифровка подписи"]
[]
[null,null,null,"Согласовано. Руководитель организации:"]
[]
[]
[null,null,null,"личная подпись",null,"расшифровка подписи"]

{"sheet":"Расчеты","index":5,"n_rows":216,"n_cols":20,"rows_kept":216,"cut":false,"hidden":true,"merged":[[2,1,2,13],[3,1,3,13],[192,4,192,6],[206,7,206,8],[94,1,94,3],[94,9,94,11]]}
["Производственный календарь по данным Аналитического центра при Правительстве Российской Федерации"]
["Ссылка на данные:","http://data.gov.ru/opendata/7708660670-proizvcalendar"]
["Дата обновления данных:","2019-11-12"]
["Выходные дни текущего месяца:",{"$f":"SUBSTITUTE(VLOOKUP(YEAR(NOW()),B6:N13,MONTH(NOW())+1, 0),\"+\",\"\")","v":"1,7,8,9,14,15,21,22,28,29"}]
["Исходные данные за все месяцы:",null,"Январь","Февраль","Март","Апрель","Май","Июнь","Июль","Август","Сентябрь","Октябрь","Ноябрь","Декабрь"," "]
[null,2018,"1,2,3,4,5,6,7,8,13,14,20,21,27,28","3,4,10,11,17,18,22*,23,24,25","3,4,7*,8,9,10,11,17,18,24,25,31","1,7,8,14,15,21,22,28*,29,30","1,2,5,6,8*,9,12,13,19,20,26,27","2,3,9*,10,11,12,16,17,23,24,30","1,7,8,14,15,21,22,28,29","4,5,11,12,18,19,25,26","1,2,8,9,15,16,22,23,29,30","6,7,13,14,20,21,27,28","3,4,5,10,11,17,18,24,25","1,2,8,9,15,16,22,23,29*,30,31"," "]
[null,2019,"1,2,3,4,5,6,7,8,12,13,19,20,26,27","2,3,9,10,16,17,22*,23,24","2,3,7*,8,9,10,16,17,23,24,30,31","6,7,13,14,20,21,27,28,30*","1,2,3,4,5,8*,9,10,11,12,18,19,25,26","1,2,8,9,11*,12,15,16,22,23,29,30","6,7,13,14,20,21,27,28","3,4,10,11,17,18,24,25,31","1,7,8,14,15,21,22,28,29","5,6,12,13,19,20,26,27","2,3,4,9,10,16,17,23,24,30","1,7,8,14,15,21,22,28,29,31*"," "]
[null,2020,"1,2,3,4,5,6,7,8,11,12,18,19,25,26","1,2,8,9,15,16,22,23,24+,29","1,7,8,9+,14,15,21,22,28,29","4,5,11,12,18,19,25,26,30*","1,2,3,4+,5+,8*,9,10,11+,16,17,23,24,30,31","6,7,11*,12,13,14,20,21,27,28","4,5,11,12,18,19,25,26","1,2,8,9,15,16,22,23,29,30","5,6,12,13,19,20,26,27","3,4,10,11,17,18,24,25,31","1,3*,4,7,8,14,15,21,22,28,29","5,6,12,13,19,20,26,27,31*"," "]
[null,2021,"1,2,3,4,5,6,7,8,9,10,16,17,23,24,30,31","6,7,13,14,20,21,22*,23,27,28","6,7,8*,13,14,20,21,27,28","3,4,10,11,17,18,24,25,30*","1,2,3+,8,9,10+,15,16,22,23,29,30","5,6,11*,12,13,14+,19,20,26,27","3,4,10,11,17,18,24,25,31","1,7,8,14,15,21,22,28,29","4,5,11,12,18,19,25,26","2,3,9,10,16,17,23,24,30,31","3*,4,6,7,13,14,20,21,27,28","4,5,11,12,18,19,25,26,31*"," "]
[null,2022,"1,2,3,4,5,6,7,8,9,15,16,22,23,29,30","5,6,12,13,19,20,22*,23,26,27","5,6,7*,8,12,13,19,20,26,27","2,3,9,10,16,17,23,24,30","1,2+,7,8,9,14,15,21,22,28,29","4,5,11,12,13+,18,19,25,26","2,3,9,10,16,17,23,24,30,31","6,7,13,14,20,21,27,28","3,4,10,11,17,18,24,25","1,2,8,9,15,16,22,23,29,30","3*,4,5,6,12,13,19,20,26,27","3,4,10,11,17,18,24,25,31"," "]
[null,2023,"1,2,3,4,5,6,7,8,14,15,21,22,28,29","4,5,11,12,18,19,22*,23,25,26","4,5,7*,8,11,12,18,19,25,26","1,2,8,9,15,16,22,23,29,30","1,6,7,8*,9,13,14,20,21,27,28","3,4,10,11,12,17,18,24,25","1,2,8,9,15,16,22,23,29,30","5,6,12,13,19,20,26,27","2,3,9,10,16,17,23,24,30","1,7,8,14,15,21,22,28,29","3*,4,5,6+,11,12,18,19,25,26","2,3,9,10,16,17,23,24,30,31"," "]
[null,2024,"1,2,3,4,5,6,7,8,13,14,20,21,27,28","3,4,10,11,17,18,22*,23,24,25","2,3,7*,8,9,10,16,17,23,24,30,31","6,7,13,14,20,21,27,28,30*","1,4,5,8*,9,11,12,18,19,25,26","1,2,8,9,11*,12,15,16,22,23,29,30","6,7,13,14,20,21,27,28","3,4,10,11,17,18,24,25,31","1,7,8,14,15,21,22,28,29","5,6,12,13,19,20,26,27","2,3,4,9,10,16,17,23,24,30","1,7,8,14,15,21,22,28,29,31*"," "]
[null,2025,"1,2,3,4,5,6,7,8,11,12,18,19,25,26","1,2,8,9,15,16,22,23,24+","1,2,7*,8,9,10+,15,16,22,23,29,30","5,6,12,13,19,20,26,27,30*","1,3,4,8*,9,10,11,17,18,24,25,31","1,7,8,11*,12,14,15,21,22,28,29","5,6,12,13,19,20,26,27","2,3,9,10,16,17,23,24,30,31","6,7,13,14,20,21,27,28","4,5,11,12,18,19,25,26","1,2,3*,4,8,9,15,16,22,23,29,30","6,7,13,14,20,21,27,28,31*"," "]
[]
[]
[]
[]
["Полные даты выходных дней:",null,"01","02","03","04","05","06","07","08","09",10,11,12," "]
[null,{"$f":"B6","v":2018},{"$f":"SUBSTITUTE(CONCATENATE(SUBSTITUTE(C6,\"+\",\"\"),\",\"),\",\",CONCATENATE(\".\",C$18,\".\",$B19,\",\"))","v":"1.01.2018,2.01.2018,3.01.2018,4.01.2018,5.01.2018,6.01.2018,7.01.2018,8.01.2018,13.01.2018,14.01.2018,20.01.2018,21.01.2018,27.01.2018,28.01.2018,"},{"$f":"SUBSTITUTE(CONCATENATE(SUBSTITUTE(D6,\"+\",\"\"),\",\"),\",\",CONCATENATE(\".\",D$18,\".\",$B19,\",\"))","v":"3.02.2018,4.02.2018,10.02.2018,11.02.2018,17.02.2018,18.02.2018,22*.02.2018,23.02.2018,24.02.2018,25.02.2018,"},"3.03.2018,4.03.2018,7*.03.2018,8.03.2018,9.03.2018,10.03.2018,11.03.2018,17.03.2018,18.03.2018,24.03.2018,25.03.2018,31.03.2018,","1.04.2018,7.04.2018,8.04.2018,14.04.2018,15.04.2018,21.04.2018,22.04.2018,28*.04.2018,29.04.2018,30.04.2018,","1.05.2018,2.05.2018,5.05.2018,6.05.2018,8*.05.2018,9.05.2018,12.05.2018,13.05.2018,19.05.2018,20.05.2018,26.05.2018,27.05.2018,","2.06.2018,3.06.2018,9*.06.2018,10.06.2018,11.06.2018,12.06.2018,16.06.2018,17.06.2018,23.06.2018,24.06.2018,30.06.2018,","1.07.2018,7.07.2018,8.07.2018,14.07.2018,15.07.2018,21.07.2018,22.07.2018,28.07.2018,29.07.2018,","4.08.2018,5.08.2018,11.08.2018,12.08.2018,18.08.2018,19.08.2018,25.08.2018,26.08.2018,","1.09.2018,2.09.2018,8.09.2018,9.09.2018,15.09.2018,16.09.2018,22.09.2018,23.09.2018,29.09.2018,30.09.2018,","6.10.2018,7.10.2018,13.10.2018,14.10.2018,20.10.2018,21.10.2018,27.10.2018,28.10.2018,","3.11.2018,4.11.2018,5.11.2018,10.11.2018,11.11.2018,17.11.2018,18.11.2018,24.11.2018,25.11.2018,","1.12.2018,2.12.2018,8.12.2018,9.12.2018,15.12.2018,16.12.2018,22.12.2018,23.12.2018,29*.12.2018,30.12.2018,31.12.2018,"," "]
[null,2019,{"$f":"SUBSTITUTE(CONCATENATE(SUBSTITUTE(C7,\"+\",\"\"),\",\"),\",\",CONCATENATE(\".\",C$18,\".\",$B20,\",\"))","v":"1.01.2019,2.01.2019,3.01.2019,4.01.2019,5.01.2019,6.01.2019,7.01.2019,8.01.2019,12.01.2019,13.01.2019,19.01.2019,20.01.2019,26.01.2019,27.01.2019,"},"2.02.2019,3.02.2019,9.02.2019,10.02.2019,16.02.2019,17.02.2019,22*.02.2019,23.02.2019,24.02.2019,","2.03.2019,3.03.2019,7*.03.2019,8.03.2019,9.03.2019,10.03.2019,16.03.2019,17.03.2019,23.03.2019,24.03.2019,30.03.2019,31.03.2019,","6.04.2019,7.04.2019,13.04.2019,14.04.2019,20.04.2019,21.04.2019,27.04.2019,28.04.2019,30*.04.2019,","1.05.2019,2.05.2019,3.05.2019,4.05.2019,5.05.2019,8*.05.2019,9.05.2019,10.05.2019,11.05.2019,12.05.2019,18.05.2019,19.05.2019,25.05.2019,26.05.2019,","1.06.2019,2.06.2019,8.06.2019,9.06.2019,11*.06.2019,12.06.2019,15.06.2019,16.06.2019,22.06.2019,23.06.2019,29.06.2019,30.06.2019,","6.07.2019,7.07.2019,13.07.2019,14.07.2019,20.07.2019,21.07.2019,27.07.2019,28.07.2019,","3.08.2019,4.08.2019,10.08.2019,11.08.2019,17.08.2019,18.08.2019,24.08.2019,25.08.2019,31.08.2019,","1.09.2019,7.09.2019,8.09.2019,14.09.2019,15.09.2019,21.09.2019,22.09.2019,28.09.2019,29.09.2019,","5.10.2019,6.10.2019,12.10.2019,13.10.2019,19.10.2019,20.10.2019,26.10.2019,27.10.2019,","2.11.2019,3.11.2019,4.11.2019,9.11.2019,10.11.2019,16.11.2019,17.11.2019,23.11.2019,24.11.2019,30.11.2019,","1.12.2019,7.12.2019,8.12.2019,14.12.2019,15.12.2019,21.12.2019,22.12.2019,28.12.2019,29.12.2019,31*.12.2019,"," "]
[null,2020,{"$f":"SUBSTITUTE(CONCATENATE(SUBSTITUTE(C8,\"+\",\"\"),\",\"),\",\",CONCATENATE(\".\",C$18,\".\",$B21,\",\"))","v":"1.01.2020,2.01.2020,3.01.2020,4.01.2020,5.01.2020,6.01.2020,7.01.2020,8.01.2020,11.01.2020,12.01.2020,18.01.2020,19.01.2020,25.01.2020,26.01.2020,"},"1.02.2020,2.02.2020,8.02.2020,9.02.2020,15.02.2020,16.02.2020,22.02.2020,23.02.2020,24.02.2020,29.02.2020,","1.03.2020,7.03.2020,8.03.2020,9.03.2020,14.03.2020,15.03.2020,21.03.2020,22.03.2020,28.03.2020,29.03.2020,","4.04.2020,5.04.2020,11.04.2020,12.04.2020,18.04.2020,19.04.2020,25.04.2020,26.04.2020,30*.04.2020,","1.05.2020,2.05.2020,3.05.2020,4.05.2020,5.05.2020,8*.05.2020,9.05.2020,10.05.2020,11.05.2020,16.05.2020,17.05.2020,23.05.2020,24.05.2020,30.05.2020,31.05.2020,","6.06.2020,7.06.2020,11*.06.2020,12.06.2020,13.06.2020,14.06.2020,20.06.2020,21.06.2020,27.06.2020,28.06.2020,","4.07.2020,5.07.2020,11.07.2020,12.07.2020,18.07.2020,19.07.2020,25.07.2020,26.07.2020,","1.08.2020,2.08.2020,8.08.2020,9.08.2020,15.08.2020,16.08.2020,22.08.2020,23.08.2020,29.08.2020,30.08.2020,","5.09.2020,6.09.2020,12.09.2020,13.09.2020,19.09.2020,20.09.2020,26.09.2020,27.09.2020,","3.10.2020,4.10.2020,10.10.2020,11.10.2020,17.10.2020,18.10.2020,24.10.2020,25.10.2020,31.10.2020,","1.11.2020,3*.11.2020,4.11.2020,7.11.2020,8.11.2020,14.11.2020,15.11.2020,21.11.2020,22.11.2020,28.11.2020,29.11.2020,","5.12.2020,6.12.2020,12.12.2020,13.12.2020,19.12.2020,20.12.2020,26.12.2020,27.12.2020,31*.12.2020,"," "]
[null,2021,{"$f":"SUBSTITUTE(CONCATENATE(SUBSTITUTE(C9,\"+\",\"\"),\",\"),\",\",CONCATENATE(\".\",C$18,\".\",$B22,\",\"))","v":"1.01.2021,2.01.2021,3.01.2021,4.01.2021,5.01.2021,6.01.2021,7.01.2021,8.01.2021,9.01.2021,10.01.2021,16.01.2021,17.01.2021,23.01.2021,24.01.2021,30.01.2021,31.01.2021,"},"6.02.2021,7.02.2021,13.02.2021,14.02.2021,20.02.2021,21.02.2021,22*.02.2021,23.02.2021,27.02.2021,28.02.2021,","6.03.2021,7.03.2021,8*.03.2021,13.03.2021,14.03.2021,20.03.2021,21.03.2021,27.03.2021,28.03.2021,","3.04.2021,4.04.2021,10.04.2021,11.04.2021,17.04.2021,18.04.2021,24.04.2021,25.04.2021,30*.04.2021,","1.05.2021,2.05.2021,3.05.2021,8.05.2021,9.05.2021,10.05.2021,15.05.2021,16.05.2021,22.05.2021,23.05.2021,29.05.2021,30.05.2021,","5.06.2021,6.06.2021,11*.06.2021,12.06.2021,13.06.2021,14.06.2021,19.06.2021,20.06.2021,26.06.2021,27.06.2021,","3.07.2021,4.07.2021,10.07.2021,11.07.2021,17.07.2021,18.07.2021,24.07.2021,25.07.2021,31.07.2021,","1.08.2021,7.08.2021,8.08.2021,14.08.2021,15.08.2021,21.08.2021,22.08.2021,28.08.2021,29.08.2021,","4.09.2021,5.09.2021,11.09.2021,12.09.2021,18.09.2021,19.09.2021,25.09.2021,26.09.2021,","2.10.2021,3.10.2021,9.10.2021,10.10.2021,16.10.2021,17.10.2021,23.10.2021,24.10.2021,30.10.2021,31.10.2021,","3*.11.2021,4.11.2021,6.11.2021,7.11.2021,13.11.2021,14.11.2021,20.11.2021,21.11.2021,27.11.2021,28.11.2021,","4.12.2021,5.12.2021,11.12.2021,12.12.2021,18.12.2021,19.12.2021,25.12.2021,26.12.2021,31*.12.2021,"," "]
[null,2022,{"$f":"SUBSTITUTE(CONCATENATE(SUBSTITUTE(C10,\"+\",\"\"),\",\"),\",\",CONCATENATE(\".\",C$18,\".\",$B23,\",\"))","v":"1.01.2022,2.01.2022,3.01.2022,4.01.2022,5.01.2022,6.01.2022,7.01.2022,8.01.2022,9.01.2022,15.01.2022,16.01.2022,22.01.2022,23.01.2022,29.01.2022,30.01.2022,"},"5.02.2022,6.02.2022,12.02.2022,13.02.2022,19.02.2022,20.02.2022,22*.02.2022,23.02.2022,26.02.2022,27.02.2022,","5.03.2022,6.03.2022,7*.03.2022,8.03.2022,12.03.2022,13.03.2022,19.03.2022,20.03.2022,26.03.2022,27.03.2022,","2.04.2022,3.04.2022,9.04.2022,10.04.2022,16.04.2022,17.04.2022,23.04.2022,24.04.2022,30.04.2022,","1.05.2022,2.05.2022,7.05.2022,8.05.2022,9.05.2022,14.05.2022,15.05.2022,21.05.2022,22.05.2022,28.05.2022,29.05.2022,","4.06.2022,5.06.2022,11.06.2022,12.06.2022,13.06.2022,18.06.2022,19.06.2022,25.06.2022,26.06.2022,","2.07.2022,3.07.2022,9.07.2022,10.07.2022,16.07.2022,17.07.2022,23.07.2022,24.07.2022,30.07.2022,31.07.2022,","6.08.2022,7.08.2022,13.08.2022,14.08.2022,20.08.2022,21.08.2022,27.08.2022,28.08.2022,","3.09.2022,4.09.2022,10.09.2022,11.09.2022,17.09.2022,18.09.2022,24.09.2022,25.09.2022,","1.10.2022,2.10.2022,8.10.2022,9.10.2022,15.10.2022,16.10.2022,22.10.2022,23.10.2022,29.10.2022,30.10.2022,","3*.11.2022,4.11.2022,5.11.2022,6.11.2022,12.11.2022,13.11.2022,19.11.2022,20.11.2022,26.11.2022,27.11.2022,","3.12.2022,4.12.2022,10.12.2022,11.12.2022,17.12.2022,18.12.2022,24.12.2022,25.12.2022,31.12.2022,"," "]
[null,2023,{"$f":"SUBSTITUTE(CONCATENATE(SUBSTITUTE(C11,\"+\",\"\"),\",\"),\",\",CONCATENATE(\".\",C$18,\".\",$B24,\",\"))","v":"1.01.2023,2.01.2023,3.01.2023,4.01.2023,5.01.2023,6.01.2023,7.01.2023,8.01.2023,14.01.2023,15.01.2023,21.01.2023,22.01.2023,28.01.2023,29.01.2023,"},"4.02.2023,5.02.2023,11.02.2023,12.02.2023,18.02.2023,19.02.2023,22*.02.2023,23.02.2023,25.02.2023,26.02.2023,","4.03.2023,5.03.2023,7*.03.2023,8.03.2023,11.03.2023,12.03.2023,18.03.2023,19.03.2023,25.03.2023,26.03.2023,","1.04.2023,2.04.2023,8.04.2023,9.04.2023,15.04.2023,16.04.2023,22.04.2023,23.04.2023,29.04.2023,30.04.2023,","1.05.2023,6.05.2023,7.05.2023,8*.05.2023,9.05.2023,13.05.2023,14.05.2023,20.05.2023,21.05.2023,27.05.2023,28.05.2023,","3.06.2023,4.06.2023,10.06.2023,11.06.2023,12.06.2023,17.06.2023,18.06.2023,24.06.2023,25.06.2023,","1.07.2023,2.07.2023,8.07.2023,9.07.2023,15.07.2023,16.07.2023,22.07.2023,23.07.2023,29.07.2023,30.07.2023,","5.08.2023,6.08.2023,12.08.2023,13.08.2023,19.08.2023,20.08.2023,26.08.2023,27.08.2023,","2.09.2023,3.09.2023,9.09.2023,10.09.2023,16.09.2023,17.09.2023,23.09.2023,24.09.2023,30.09.2023,","1.10.2023,7.10.2023,8.10.2023,14.10.2023,15.10.2023,21.10.2023,22.10.2023,28.10.2023,29.10.2023,","3*.11.2023,4.11.2023,5.11.2023,6.11.2023,11.11.2023,12.11.2023,18.11.2023,19.11.2023,25.11.2023,26.11.2023,","2.12.2023,3.12.2023,9.12.2023,10.12.2023,16.12.2023,17.12.2023,23.12.2023,24.12.2023,30.12.2023,31.12.2023,"," "]
[null,2024,{"$f":"SUBSTITUTE(CONCATENATE(SUBSTITUTE(C12,\"+\",\"\"),\",\"),\",\",CONCATENATE(\".\",C$18,\".\",$B25,\",\"))","v":"1.01.2024,2.01.2024,3.01.2024,4.01.2024,5.01.2024,6.01.2024,7.01.2024,8.01.2024,13.01.2024,14.01.2024,20.01.2024,21.01.2024,27.01.2024,28.01.2024,"},"3.02.2024,4.02.2024,10.02.2024,11.02.2024,17.02.2024,18.02.2024,22*.02.2024,23.02.2024,24.02.2024,25.02.2024,","2.03.2024,3.03.2024,7*.03.2024,8.03.2024,9.03.2024,10.03.2024,16.03.2024,17.03.2024,23.03.2024,24.03.2024,30.03.2024,31.03.2024,","6.04.2024,7.04.2024,13.04.2024,14.04.2024,20.04.2024,21.04.2024,27.04.2024,28.04.2024,30*.04.2024,","1.05.2024,4.05.2024,5.05.2024,8*.05.2024,9.05.2024,11.05.2024,12.05.2024,18.05.2024,19.05.2024,25.05.2024,26.05.2024,","1.06.2024,2.06.2024,8.06.2024,9.06.2024,11*.06.2024,12.06.2024,15.06.2024,16.06.2024,22.06.2024,23.06.2024,29.06.2024,30.06.2024,","6.07.2024,7.07.2024,13.07.2024,14.07.2024,20.07.2024,21.07.2024,27.07.2024,28.07.2024,","3.08.2024,4.08.2024,10.08.2024,11.08.2024,17.08.2024,18.08.2024,24.08.2024,25.08.2024,31.08.2024,","1.09.2024,7.09.2024,8.09.2024,14.09.2024,15.09.2024,21.09.2024,22.09.2024,28.09.2024,29.09.2024,","5.10.2024,6.10.2024,12.10.2024,13.10.2024,19.10.2024,20.10.2024,26.10.2024,27.10.2024,","2.11.2024,3.11.2024,4.11.2024,9.11.2024,10.11.2024,16.11.2024,17.11.2024,23.11.2024,24.11.2024,30.11.2024,","1.12.2024,7.12.2024,8.12.2024,14.12.2024,15.12.2024,21.12.2024,22.12.2024,28.12.2024,29.12.2024,31*.12.2024,"," "]
[null,2025,{"$f":"SUBSTITUTE(CONCATENATE(SUBSTITUTE(C13,\"+\",\"\"),\",\"),\",\",CONCATENATE(\".\",C$18,\".\",$B26,\",\"))","v":"1.01.2025,2.01.2025,3.01.2025,4.01.2025,5.01.2025,6.01.2025,7.01.2025,8.01.2025,11.01.2025,12.01.2025,18.01.2025,19.01.2025,25.01.2025,26.01.2025,"},"1.02.2025,2.02.2025,8.02.2025,9.02.2025,15.02.2025,16.02.2025,22.02.2025,23.02.2025,24.02.2025,","1.03.2025,2.03.2025,7*.03.2025,8.03.2025,9.03.2025,10.03.2025,15.03.2025,16.03.2025,22.03.2025,23.03.2025,29.03.2025,30.03.2025,","5.04.2025,6.04.2025,12.04.2025,13.04.2025,19.04.2025,20.04.2025,26.04.2025,27.04.2025,30*.04.2025,","1.05.2025,3.05.2025,4.05.2025,8*.05.2025,9.05.2025,10.05.2025,11.05.2025,17.05.2025,18.05.2025,24.05.2025,25.05.2025,31.05.2025,","1.06.2025,7.06.2025,8.06.2025,11*.06.2025,12.06.2025,14.06.2025,15.06.2025,21.06.2025,22.06.2025,28.06.2025,29.06.2025,","5.07.2025,6.07.2025,12.07.2025,13.07.2025,19.07.2025,20.07.2025,26.07.2025,27.07.2025,","2.08.2025,3.08.2025,9.08.2025,10.08.2025,16.08.2025,17.08.2025,23.08.2025,24.08.2025,30.08.2025,31.08.2025,","6.09.2025,7.09.2025,13.09.2025,14.09.2025,20.09.2025,21.09.2025,27.09.2025,28.09.2025,","4.10.2025,5.10.2025,11.10.2025,12.10.2025,18.10.2025,19.10.2025,25.10.2025,26.10.2025,","1.11.2025,2.11.2025,3*.11.2025,4.11.2025,8.11.2025,9.11.2025,15.11.2025,16.11.2025,22.11.2025,23.11.2025,29.11.2025,30.11.2025,","6.12.2025,7.12.2025,13.12.2025,14.12.2025,20.12.2025,21.12.2025,27.12.2025,28.12.2025,31*.12.2025,"," "]
[]
[]
[]
[]
["Даты выходных дней одной строкой:",{"$f":"\",\"&SUBSTITUTE(TEXTJOIN(\",\",1,C19:N26),\",,\",\",\")","v":",1.01.2018,2.01.2018,3.01.2018,4.01.2018,5.01.2018,6.01.2018,7.01.2018,8.01.2018,13.01.2018,14.01.2018,20.01.2018,21.01.2018,27.01.2018,28.01.2018,3.02.2018,4.02.2018,10.02.2018,11.02.2018,17.02.2018,18.02.2018,22*.02.2018,23.02.2018,24.02.2018,25.02.2018,3.03.2018,4.03.2018,7*.03.2018,8.03.2018,9.03.2018,10.03.2018,11.03.2018,17.03.2018,18.03.2018,24.03.2018,25.03.2018,31.03.2018,1.04.2018,7.04.2018,8.04.2018,14.04.2018,15.04.2018,21.04.2018,22.04.2018,28*.04.2018,29.04.2018,30.04.2018,1.05.2018,2.05.2018,5.05.2018,6.05.2018,8*.05.2018,9.05.2018,12.05.2018,13.05.2018,19.05.2018,20.05.2018,26.05.2018,27.05.2018,2.06.2018,3.06.2018,9*.06.2018,10.06.2018,11.06.2018,12.06.2018,16.06.2018,17.06.2018,23.06.2018,24.06.2018,30.06.2018,1.07.2018,7.07.2018,8.07.2018,14.07.2018,15.07.2018,21.07.2018,22.07.2018,28.07.2018,29.07.2018,4.08.2018,5.08.2018,11.08.2018,12.08.2018,18.08.2018,19.08.2018,25.08.2018,26.08.2018,1.09.2018,2.09.2018,8.09.2018,9.09.2018,15.09.2018,16.09.2018,22.09.2018,23.09.2018,29.09.2018,30.09.2018,6.10.2018,7.10.2018,13.10.2018,14.10.2018,20.10.2018,21.10.2018,27.10.2018,28.10.2018,3.11.2018,4.11.2018,5.11.2018,10.11.2018,11.11.2018,17.11.2018,18.11.2018,24.11.2018,25.11.2018,1.12.2018,2.12.2018,8.12.2018,9.12.2018,15.12.2018,16.12.2018,22.12.2018,23.12.2018,29*.12.2018,30.12.2018,31.12.2018,1.01.2019,2.01.2019,3.01.2019,4.01.2019,5.01.2019,6.01.2019,7.01.2019,8.01.2019,12.01.2019,13.01.2019,19.01.2019,20.01.2019,26.01.2019,27.01.2019,2.02.2019,3.02.2019,9.02.2019,10.02.2019,16.02.2019,17.02.2019,22*.02.2019,23.02.2019,24.02.2019,2.03.2019,3.03.2019,7*.03.2019,8.03.2019,9.03.2019,10.03.2019,16.03.2019,17.03.2019,23.03.2019,24.03.2019,30.03.2019,31.03.2019,6.04.2019,7.04.2019,13.04.2019,14.04.2019,20.04.2019,21.04.2019,27.04.2019,28.04.2019,30*.04.2019,1.05.2019,2.05.2019,3.05.2019,4.05.2019,5.05.2019,8*.05.2019,9.05.2019,10.05.2019,11.05.2019,12.05.2019,18.05.2019,19.05.2019,25.05.2019,26.05.2019,1.06.2019,2.06.2019,8.06.2019,9.06.2019,11*.06.2019,12.06.2019,15.06.2019,16.06.2019,22.06.2019,23.06.2019,29.06.2019,30.06.2019,6.07.2019,7.07.2019,13.07.2019,14.07.2019,20.07.2019,21.07.2019,27.07.2019,28.07.2019,3.08.2019,4.08.2019,10.08.2019,11.08.2019,17.08.2019,18.08.2019,24.08.2019,25.08.2019,31.08.2019,1.09.2019,7.09.2019,8.09.2019,14.09.2019,15.09.2019,21.09.2019,22.09.2019,28.09.2019,29.09.2019,5.10.2019,6.10.2019,12.10.2019,13.10.2019,19.10.2019,20.10.2019,26.10.2019,27.10.2019,2.11.2019,3.11.2019,4.11.2019,9.11.2019,10.11.2019,16.11.2019,17.11.2019,23.11.2019,24.11.2019,30.11.2019,1.12.2019,7.12.2019,8.12.2019,14.12.2019,15.12.2019,21.12.2019,22.12.2019,28.12.2019,29.12.2019,31*.12.2019,1.01.2020,2.01.2020,3.01.2020,4.01.2020,5.01.2020,6.01.2020,7.01.2020,8.01.2020,11.01.2020,12.01.2020,18.01.2020,19.01.2020,25.01.2020,26.01.2020,1.02.2020,2.02.2020,8.02.2020,9.02.2020,15.02.2020,16.02.2020,22.02.2020,23.02.2020,24.02.2020,29.02.2020,1.03.2020,7.03.2020,8.03.2020,9.03.2020,14.03.2020,15.03.2020,21.03.2020,22.03.2020,28.03.2020,29.03.2020,4.04.2020,5.04.2020,11.04.2020,12.04.2020,18.04.2020,19.04.2020,25.04.2020,26.04.2020,30*.04.2020,1.05.2020,2.05.2020,3.05.2020,4.05.2020,5.05.2020,8*.05.2020,9.05.2020,10.05.2020,11.05.2020,16.05.2020,17.05.2020,23.05.2020,24.05.2020,30.05.2020,31.05.2020,6.06.2020,7.06.2020,11*.06.2020,12.06.2020,13.06.2020,14.06.2020,20.06.2020,21.06.2020,27.06.2020,28.06.2020,4.07.2020,5.07.2020,11.07.2020,12.07.2020,18.07.2020,19.07.2020,25.07.2020,26.07.2020,1.08.2020,2.08.2020,8.08.2020,9.08.2020,15.08.2020,16.08.2020,22.08.2020,23.08.2020,29.08.2020,30.08.2020,5.09.2020,6.09.2020,12.09.2020,13.09.2020,19.09.2020,20.09.2020,26.09.2020,27.09.2020,3.10.2020,4.10.2020,10.10.2020,11.10.2020,17.10.2020,18.10.2020,24.10.2020,25.10.2020,31.10.2020,1.11.2020,3*.11.2020,4.11.2020,7.11.2020,8.11.2020,14.11.2020,15.11.2020,21.11.2020,22.11.2020,28.11.2020,29.11.2020,5.12.2020,6.12.2020,12.12.2020,13.12.2020,19.12.2020,20.12.2020,26.12.2020,27.12.2020,31*.12.2020,1.01.2021,2.01.2021,3.01.2021,4.01.2021,5.01.2021,6.01.2021,7.01.2021,8.01.2021,9.01.2021,10.01.2021,16.01.2021,17.01.2021,23.01.2021,24.01.2021,30.01.2021,31.01.2021,6.02.2021,7.02.2021,13.02.2021,14.02.2021,20.02.2021,21.02.2021,22*.02.2021,23.02.2021,27.02.2021,28.02.2021,6.03.2021,7.03.2021,8*.03.2021,13.03.2021,14.03.2021,20.03.2021,21.03.2021,27.03.2021,28.03.2021,3.04.2021,4.04.2021,10.04.2021,11.04.2021,17.04.2021,18.04.2021,24.04.2021,25.04.2021,30*.04.2021,1.05.2021,2.05.2021,3.05.2021,8.05.2021,9.05.2021,10.05.2021,15.05.2021,16.05.2021,22.05.2021,23.05.2021,29.05.2021,30.05.2021,5.06.2021,6.06.2021,11*.06.2021,12.06.2021,13.06.2021,14.06.2021,19.06.2021,20.06.2021,26.06.2021,27.06.2021,3.07.2021,4.07.2021,10.07.2021,11.07.2021,17.07.2021,18.07.2021,24.07.2021,25.07.2021,31.07.2021,1.08.2021,7.08.2021,8.08.2021,14.08.2021,15.08.2021,21.08.2021,22.08.2021,28.08.2021,29.08.2021,4.09.2021,5.09.2021,11.09.2021,12.09.2021,18.09.2021,19.09.2021,25.09.2021,26.09.2021,2.10.2021,3.10.2021,9.10.2021,10.10.2021,16.10.2021,17.10.2021,23.10.2021,24.10.2021,30.10.2021,31.10.2021,3*.11.2021,4.11.2021,6.11.2021,7.11.2021,13.11.2021,14.11.2021,20.11.2021,21.11.2021,27.11.2021,28.11.2021,4.12.2021,5.12.2021,11.12.2021,12.12.2021,18.12.2021,19.12.2021,25.12.2021,26.12.2021,31*.12.2021,1.01.2022,2.01.2022,3.01.2022,4.01.2022,5.01.2022,6.01.2022,7.01.2022,8.01.2022,9.01.2022,15.01.2022,16.01.2022,22.01.2022,23.01.2022,29.01.2022,30.01.2022,5.02.2022,6.02.2022,12.02.2022,13.02.2022,19.02.2022,20.02.2022,22*.02.2022,23.02.2022,26.02.2022,27.02.2022,5.03.2022,6.03.2022,7*.03.2022,8.03.2022,12.03.2022,13.03.2022,19.03.2022,20.03.2022,26.03.2022,27.03.2022,2.04.2022,3.04.2022,9.04.2022,10.04.2022,16.04.2022,17.04.2022,23.04.2022,24.04.2022,30.04.2022,1.05.2022,2.05.2022,7.05.2022,8.05.2022,9.05.2022,14.05.2022,15.05.2022,21.05.2022,22.05.2022,28.05.2022,29.05.2022,4.06.2022,5.06.2022,11.06.2022,12.06.2022,13.06.2022,18.06.2022,19.06.2022,25.06.2022,26.06.2022,2.07.2022,3.07.2022,9.07.2022,10.07.2022,16.07.2022,17.07.2022,23.07.2022,24.07.2022,30.07.2022,31.07.2022,6.08.2022,7.08.2022,13.08.2022,14.08.2022,20.08.2022,21.08.2022,27.08.2022,28.08.2022,3.09.2022,4.09.2022,10.09.2022,11.09.2022,17.09.2022,18.09.2022,24.09.2022,25.09.2022,1.10.2022,2.10.2022,8.10.2022,9.10.2022,15.10.2022,16.10.2022,22.10.2022,23.10.2022,29.10.2022,30.10.2022,3*.11.2022,4.11.2022,5.11.2022,6.11.2022,12.11.2022,13.11.2022,19.11.2022,20.11.2022,26.11.2022,27.11.2022,3.12.2022,4.12.2022,10.12.2022,11.12.2022,17.12.2022,18.12.2022,24.12.2022,25.12.2022,31.12.2022,1.01.2023,2.01.2023,3.01.2023,4.01.2023,5.01.2023,6.01.2023,7.01.2023,8.01.2023,14.01.2023,15.01.2023,21.01.2023,22.01.2023,28.01.2023,29.01.2023,4.02.2023,5.02.2023,11.02.2023,12.02.2023,18.02.2023,19.02.2023,22*.02.2023,23.02.2023,25.02.2023,26.02.2023,4.03.2023,5.03.2023,7*.03.2023,8.03.2023,11.03.2023,12.03.2023,18.03.2023,19.03.2023,25.03.2023,26.03.2023,1.04.2023,2.04.2023,8.04.2023,9.04.2023,15.04.2023,16.04.2023,22.04.2023,23.04.2023,29.04.2023,30.04.2023,1.05.2023,6.05.2023,7.05.2023,8*.05.2023,9.05.2023,13.05.2023,14.05.2023,20.05.2023,21.05.2023,27.05.2023,28.05.2023,3.06.2023,4.06.2023,10.06.2023,11.06.2023,12.06.2023,17.06.2023,18.06.2023,24.06.2023,25.06.2023,1.07.2023,2.07.2023,8.07.2023,9.07.2023,15.07.2023,16.07.2023,22.07.2023,23.07.2023,29.07.2023,30.07.2023,5.08.2023,6.08.2023,12.08.2023,13.08.2023,19.08.2023,20.08.2023,26.08.2023,27.08.2023,2.09.2023,3.09.2023,9.09.2023,10.09.2023,16.09.2023,17.09.2023,23.09.2023,24.09.2023,30.09.2023,1.10.2023,7.10.2023,8.10.2023,14.10.2023,15.10.2023,21.10.2023,22.10.2023,28.10.2023,29.10.2023,3*.11.2023,4.11.2023,5.11.2023,6.11.2023,11.11.2023,12.11.2023,18.11.2023,19.11.2023,25.11.2023,26.11.2023,2.12.2023,3.12.2023,9.12.2023,10.12.2023,16.12.2023,17.12.2023,23.12.2023,24.12.2023,30.12.2023,31.12.2023,1.01.2024,2.01.2024,3.01.2024,4.01.2024,5.01.2024,6.01.2024,7.01.2024,8.01.2024,13.01.2024,14.01.2024,20.01.2024,21.01.2024,27.01.2024,28.01.2024,3.02.2024,4.02.2024,10.02.2024,11.02.2024,17.02.2024,18.02.2024,22*.02.2024,23.02.2024,24.02.2024,25.02.2024,2.03.2024,3.03.2024,7*.03.2024,8.03.2024,9.03.2024,10.03.2024,16.03.2024,17.03.2024,23.03.2024,24.03.2024,30.03.2024,31.03.2024,6.04.2024,7.04.2024,13.04.2024,14.04.2024,20.04.2024,21.04.2024,27.04.2024,28.04.2024,30*.04.2024,1.05.2024,4.05.2024,5.05.2024,8*.05.2024,9.05.2024,11.05.2024,12.05.2024,18.05.2024,19.05.2024,25.05.2024,26.05.2024,1.06.2024,2.06.2024,8.06.2024,9.06.2024,11*.06.2024,12.06.2024,15.06.2024,16.06.2024,22.06.2024,23.06.2024,29.06.2024,30.06.2024,6.07.2024,7.07.2024,13.07.2024,14.07.2024,20.07.2024,21.07.2024,27.07.2024,28.07.2024,3.08.2024,4.08.2024,10.08.2024,11.08.2024,17.08.2024,18.08.2024,24.08.2024,25.08.2024,31.08.2024,1.09.2024,7.09.2024,8.09.2024,14.09.2024,15.09.2024,21.09.2024,22.09.2024,28.09.2024,29.09.2024,5.10.2024,6.10.2024,12.10.2024,13.10.2024,19.10.2024,20.10.2024,26.10.2024,27.10.2024,2.11.2024,3.11.2024,4.11.2024,9.11.2024,10.11.2024,16.11.2024,17.11.2024,23.11.2024,24.11.2024,30.11.2024,1.12.2024,7.12.2024,8.12.2024,14.12.2024,15.12.2024,21.12.2024,22.12.2024,28.12.2024,29.12.2024,31*.12.2024,1.01.2025,2.01.2025,3.01.2025,4.01.2025,5.01.2025,6.01.2025,7.01.2025,8.01.2025,11.01.2025,12.01.2025,18.01.2025,19.01.2025,25.01.2025,26.01.2025,1.02.2025,2.02.2025,8.02.2025,9.02.2025,15.02.2025,16.02.2025,22.02.2025,23.02.2025,24.02.2025,1.03.2025,2.03.2025,7*.03.2025,8.03.2025,9.03.2025,10.03.2025,15.03.2025,16.03.2025,22.03.2025,23.03.2025,29.03.2025,30.03.2025,5.04.2025,6.04.2025,12.04.2025,13.04.2025,19.04.2025,20.04.2025,26.04.2025,27.04.2025,30*.04.2025,1.05.2025,3.05.2025,4.05.2025,8*.05.2025,9.05.2025,10.05.2025,11.05.2025,17.05.2025,18.05.2025,24.05.2025,25.05.2025,31.05.2025,1.06.2025,7.06.2025,8.06.2025,11*.06.2025,12.06.2025,14.06.2025,15.06.2025,21.06.2025,22.06.2025,28.06.2025,29.06.2025,5.07.2025,6.07.2025,12.07.2025,13.07.2025,19.07.2025,20.07.2025,26.07.2025,27.07.2025,2.08.2025,3.08.2025,9.08.2025,10.08.2025,16.08.2025,17.08.2025,23.08.2025,24.08.2025,30.08.2025,31.08.2025,6.09.2025,7.09.2025,13.09.2025,14.09.2025,20.09.2025,21.09.2025,27.09.2025,28.09.2025,4.10.2025,5.10.2025,11.10.2025,12.10.2025,18.10.2025,19.10.2025,25.10.2025,26.10.2025,1.11.2025,2.11.2025,3*.11.2025,4.11.2025,8.11.2025,9.11.2025,15.11.2025,16.11.2025,22.11.2025,23.11.2025,29.11.2025,30.11.2025,6.12.2025,7.12.2025,13.12.2025,14.12.2025,20.12.2025,21.12.2025,27.12.2025,28.12.2025,31*.12.2025,"}]
["Все дни в командировке:","Выходные дни в командировке:",null,null,null,null,null,null,null,"Отпуск по второй должности"]
[{"$f":"'Для заполнения'!D12","v":"2020-01-31"},{"$f":"IF(A33<='Для заполнения'!$D$13,IF(ISNUMBER(FIND(CONCATENATE(\",\",DAY(A33),\".\",TEXT(MONTH(A33),\"00\"),\".\",YEAR(A33)),$B$31)),CONCATENATE(TEXT(DAY(A33),\"00\"),\".\",TEXT(MONTH(A33),\"00\"),\".\",YEAR(A33)),\"\"),\"\")","v":""},null,null,{"$f":"IF(A33<='Для заполнения'!$D$13,\"(командировка)\",\"\")","v":"(командировка)"},null,null,null,null,{"$f":"IF(A33<='Для заполнения'!$D$13,IF(ISNUMBER(FIND(CONCATENATE(\",\",DAY(A33),\".\",TEXT(MONTH(A33),\"00\"),\".\",YEAR(A33)),$B$31)),\"\",CONCATENATE(TEXT(DAY(A33),\"00\"),\".\",TEXT(MONTH(A33),\"00\"),\".\",YEAR(A33))),\"\")","v":"31.01.2020"}]
[{"$f":"A33+1","v":"2020-02-01"},{"$f":"IF(A34<='Для заполнения'!$D$13,IF(ISNUMBER(FIND(CONCATENATE(\",\",DAY(A34),\".\",TEXT(MONTH(A34),\"00\"),\".\",YEAR(A34)),$B$31)),CONCATENATE(TEXT(DAY(A34),\"00\"),\".\",TEXT(MONTH(A34),\"00\"),\".\",YEAR(A34)),\"\"),\"\")","v":"01.02.2020"},null,null,{"$f":"IF(A34<='Для заполнения'!$D$13,\"(командировка)\",\"\")","v":"(командировка)"},null,null,null,null,{"$f":"IF(A34<='Для заполнения'!$D$13,IF(ISNUMBER(FIND(CONCATENATE(\",\",DAY(A34),\".\",TEXT(MONTH(A34),\"00\"),\".\",YEAR(A34)),$B$31)),\"\",CONCATENATE(TEXT(DAY(A34),\"00\"),\".\",TEXT(MONTH(A34),\"00\"),\".\",YEAR(A34))),\"\")","v":""}]
["2020-02-02",{"$f":"IF(A35<='Для заполнения'!$D$13,IF(ISNUMBER(FIND(CONCATENATE(\",\",DAY(A35),\".\",TEXT(MONTH(A35),\"00\"),\".\",YEAR(A35)),$B$31)),CONCATENATE(TEXT(DAY(A35),\"00\"),\".\",TEXT(MONTH(A35),\"00\"),\".\",YEAR(A35)),\"\"),\"\")","v":"02.02.2020"},null,null,{"$f":"IF(A35<='Для заполнения'!$D$13,\"(командировка)\",\"\")","v":"(командировка)"},null,null,null,null,{"$f":"IF(A35<='Для заполнения'!$D$13,IF(ISNUMBER(FIND(CONCATENATE(\",\",DAY(A35),\".\",TEXT(MONTH(A35),\"00\"),\".\",YEAR(A35)),$B$31)),\"\",CONCATENATE(TEXT(DAY(A35),\"00\"),\".\",TEXT(MONTH(A35),\"00\"),\".\",YEAR(A35))),\"\")","v":""}]
["2020-02-03",{"$f":"IF(A36<='Для заполнения'!$D$13,IF(ISNUMBER(FIND(CONCATENATE(\",\",DAY(A36),\".\",TEXT(MONTH(A36),\"00\"),\".\",YEAR(A36)),$B$31)),CONCATENATE(TEXT(DAY(A36),\"00\"),\".\",TEXT(MONTH(A36),\"00\"),\".\",YEAR(A36)),\"\"),\"\")","v":""},null,null,{"$f":"IF(A36<='Для заполнения'!$D$13,\"(командировка)\",\"\")","v":"(командировка)"},null,null,null,null,{"$f":"IF(A36<='Для заполнения'!$D$13,IF(ISNUMBER(FIND(CONCATENATE(\",\",DAY(A36),\".\",TEXT(MONTH(A36),\"00\"),\".\",YEAR(A36)),$B$31)),\"\",CONCATENATE(TEXT(DAY(A36),\"00\"),\".\",TEXT(MONTH(A36),\"00\"),\".\",YEAR(A36))),\"\")","v":"03.02.2020"}]
["2020-02-04",{"$f":"IF(A37<='Для заполнения'!$D$13,IF(ISNUMBER(FIND(CONCATENATE(\",\",DAY(A37),\".\",TEXT(MONTH(A37),\"00\"),\".\",YEAR(A37)),$B$31)),CONCATENATE(TEXT(DAY(A37),\"00\"),\".\",TEXT(MONTH(A37),\"00\"),\".\",YEAR(A37)),\"\"),\"\")","v":""},null,null,{"$f":"IF(A37<='Для заполнения'!$D$13,\"(командировка)\",\"\")","v":"(командировка)"},null,null,null,null,{"$f":"IF(A37<='Для заполнения'!$D$13,IF(ISNUMBER(FIND(CONCATENATE(\",\",DAY(A37),\".\",TEXT(MONTH(A37),\"00\"),\".\",YEAR(A37)),$B$31)),\"\",CONCATENATE(TEXT(DAY(A37),\"00\"),\".\",TEXT(MONTH(A37),\"00\"),\".\",YEAR(A37))),\"\")","v":"04.02.2020"}]
["2020-02-05",{"$f":"IF(A38<='Для заполнения'!$D$13,IF(ISNUMBER(FIND(CONCATENATE(\",\",DAY(A38),\".\",TEXT(MONTH(A38),\"00\"),\".\",YEAR(A38)),$B$31)),CONCATENATE(TEXT(DAY(A38),\"00\"),\".\",TEXT(MONTH(A38),\"00\"),\".\",YEAR(A38)),\"\"),\"\")","v":""},null,null,{"$f":"IF(A38<='Для заполнения'!$D$13,\"(командировка)\",\"\")","v":""},null,null,null,null,{"$f":"IF(A38<='Для заполнения'!$D$13,IF(ISNUMBER(FIND(CONCATENATE(\",\",DAY(A38),\".\",TEXT(MONTH(A38),\"00\"),\".\",YEAR(A38)),$B$31)),\"\",CONCATENATE(TEXT(DAY(A38),\"00\"),\".\",TEXT(MONTH(A38),\"00\"),\".\",YEAR(A38))),\"\")","v":""}]
["2020-02-06",{"$f":"IF(A39<='Для заполнения'!$D$13,IF(ISNUMBER(FIND(CONCATENATE(\",\",DAY(A39),\".\",TEXT(MONTH(A39),\"00\"),\".\",YEAR(A39)),$B$31)),CONCATENATE(TEXT(DAY(A39),\"00\"),\".\",TEXT(MONTH(A39),\"00\"),\".\",YEAR(A39)),\"\"),\"\")","v":""},null,null,{"$f":"IF(A39<='Для заполнения'!$D$13,\"(командировка)\",\"\")","v":""},null,null,null,null,{"$f":"IF(A39<='Для заполнения'!$D$13,IF(ISNUMBER(FIND(CONCATENATE(\",\",DAY(A39),\".\",TEXT(MONTH(A39),\"00\"),\".\",YEAR(A39)),$B$31)),\"\",CONCATENATE(TEXT(DAY(A39),\"00\"),\".\",TEXT(MONTH(A39),\"00\"),\".\",YEAR(A39))),\"\")","v":""}]
["2020-02-07",{"$f":"IF(A40<='Для заполнения'!$D$13,IF(ISNUMBER(FIND(CONCATENATE(\",\",DAY(A40),\".\",TEXT(MONTH(A40),\"00\"),\".\",YEAR(A40)),$B$31)),CONCATENATE(TEXT(DAY(A40),\"00\"),\".\",TEXT(MONTH(A40),\"00\"),\".\",YEAR(A40)),\"\"),\"\")","v":""},null,null,{"$f":"IF(A40<='Для заполнения'!$D$13,\"(командировка)\",\"\")","v":""},null,null,null,null,{"$f":"IF(A40<='Для заполнения'!$D$13,IF(ISNUMBER(FIND(CONCATENATE(\",\",DAY(A40),\".\",TEXT(MONTH(A40),\"00\"),\".\",YEAR(A40)),$B$31)),\"\",CONCATENATE(TEXT(DAY(A40),\"00\"),\".\",TEXT(MONTH(A40),\"00\"),\".\",YEAR(A40))),\"\")","v":""}]
["2020-02-08",{"$f":"IF(A41<='Для заполнения'!$D$13,IF(ISNUMBER(FIND(CONCATENATE(\",\",DAY(A41),\".\",TEXT(MONTH(A41),\"00\"),\".\",YEAR(A41)),$B$31)),CONCATENATE(TEXT(DAY(A41),\"00\"),\".\",TEXT(MONTH(A41),\"00\"),\".\",YEAR(A41)),\"\"),\"\")","v":""},null,null,{"$f":"IF(A41<='Для заполнения'!$D$13,\"(командировка)\",\"\")","v":""},null,null,null,null,{"$f":"IF(A41<='Для заполнения'!$D$13,IF(ISNUMBER(FIND(CONCATENATE(\",\",DAY(A41),\".\",TEXT(MONTH(A41),\"00\"),\".\",YEAR(A41)),$B$31)),\"\",CONCATENATE(TEXT(DAY(A41),\"00\"),\".\",TEXT(MONTH(A41),\"00\"),\".\",YEAR(A41))),\"\")","v":""}]
["2020-02-09",{"$f":"IF(A42<='Для заполнения'!$D$13,IF(ISNUMBER(FIND(CONCATENATE(\",\",DAY(A42),\".\",TEXT(MONTH(A42),\"00\"),\".\",YEAR(A42)),$B$31)),CONCATENATE(TEXT(DAY(A42),\"00\"),\".\",TEXT(MONTH(A42),\"00\"),\".\",YEAR(A42)),\"\"),\"\")","v":""},null,null,{"$f":"IF(A42<='Для заполнения'!$D$13,\"(командировка)\",\"\")","v":""},null,null,null,null,{"$f":"IF(A42<='Для заполнения'!$D$13,IF(ISNUMBER(FIND(CONCATENATE(\",\",DAY(A42),\".\",TEXT(MONTH(A42),\"00\"),\".\",YEAR(A42)),$B$31)),\"\",CONCATENATE(TEXT(DAY(A42),\"00\"),\".\",TEXT(MONTH(A42),\"00\"),\".\",YEAR(A42))),\"\")","v":""}]
["2020-02-10",{"$f":"IF(A43<='Для заполнения'!$D$13,IF(ISNUMBER(FIND(CONCATENATE(\",\",DAY(A43),\".\",TEXT(MONTH(A43),\"00\"),\".\",YEAR(A43)),$B$31)),CONCATENATE(TEXT(DAY(A43),\"00\"),\".\",TEXT(MONTH(A43),\"00\"),\".\",YEAR(A43)),\"\"),\"\")","v":""},null,null,{"$f":"IF(A43<='Для заполнения'!$D$13,\"(командировка)\",\"\")","v":""},null,null,null,null,{"$f":"IF(A43<='Для заполнения'!$D$13,IF(ISNUMBER(FIND(CONCATENATE(\",\",DAY(A43),\".\",TEXT(MONTH(A43),\"00\"),\".\",YEAR(A43)),$B$31)),\"\",CONCATENATE(TEXT(DAY(A43),\"00\"),\".\",TEXT(MONTH(A43),\"00\"),\".\",YEAR(A43))),\"\")","v":""}]
["2020-02-11",{"$f":"IF(A44<='Для заполнения'!$D$13,IF(ISNUMBER(FIND(CONCATENATE(\",\",DAY(A44),\".\",TEXT(MONTH(A44),\"00\"),\".\",YEAR(A44)),$B$31)),CONCATENATE(TEXT(DAY(A44),\"00\"),\".\",TEXT(MONTH(A44),\"00\"),\".\",YEAR(A44)),\"\"),\"\")","v":""},null,null,{"$f":"IF(A44<='Для заполнения'!$D$13,\"(командировка)\",\"\")","v":""},null,null,null,null,{"$f":"IF(A44<='Для заполнения'!$D$13,IF(ISNUMBER(FIND(CONCATENATE(\",\",DAY(A44),\".\",TEXT(MONTH(A44),\"00\"),\".\",YEAR(A44)),$B$31)),\"\",CONCATENATE(TEXT(DAY(A44),\"00\"),\".\",TEXT(MONTH(A44),\"00\"),\".\",YEAR(A44))),\"\")","v":""}]
["2020-02-12",{"$f":"IF(A45<='Для заполнения'!$D$13,IF(ISNUMBER(FIND(CONCATENATE(\",\",DAY(A45),\".\",TEXT(MONTH(A45),\"00\"),\".\",YEAR(A45)),$B$31)),CONCATENATE(TEXT(DAY(A45),\"00\"),\".\",TEXT(MONTH(A45),\"00\"),\".\",YEAR(A45)),\"\"),\"\")","v":""},null,null,{"$f":"IF(A45<='Для заполнения'!$D$13,\"(командировка)\",\"\")","v":""},null,null,null,null,{"$f":"IF(A45<='Для заполнения'!$D$13,IF(ISNUMBER(FIND(CONCATENATE(\",\",DAY(A45),\".\",TEXT(MONTH(A45),\"00\"),\".\",YEAR(A45)),$B$31)),\"\",CONCATENATE(TEXT(DAY(A45),\"00\"),\".\",TEXT(MONTH(A45),\"00\"),\".\",YEAR(A45))),\"\")","v":""}]
["2020-02-13",{"$f":"IF(A46<='Для заполнения'!$D$13,IF(ISNUMBER(FIND(CONCATENATE(\",\",DAY(A46),\".\",TEXT(MONTH(A46),\"00\"),\".\",YEAR(A46)),$B$31)),CONCATENATE(TEXT(DAY(A46),\"00\"),\".\",TEXT(MONTH(A46),\"00\"),\".\",YEAR(A46)),\"\"),\"\")","v":""},null,null,{"$f":"IF(A46<='Для заполнения'!$D$13,\"(командировка)\",\"\")","v":""},null,null,null,null,{"$f":"IF(A46<='Для заполнения'!$D$13,IF(ISNUMBER(FIND(CONCATENATE(\",\",DAY(A46),\".\",TEXT(MONTH(A46),\"00\"),\".\",YEAR(A46)),$B$31)),\"\",CONCATENATE(TEXT(DAY(A46),\"00\"),\".\",TEXT(MONTH(A46),\"00\"),\".\",YEAR(A46))),\"\")","v":""}]
["2020-02-14",{"$f":"IF(A47<='Для заполнения'!$D$13,IF(ISNUMBER(FIND(CONCATENATE(\",\",DAY(A47),\".\",TEXT(MONTH(A47),\"00\"),\".\",YEAR(A47)),$B$31)),CONCATENATE(TEXT(DAY(A47),\"00\"),\".\",TEXT(MONTH(A47),\"00\"),\".\",YEAR(A47)),\"\"),\"\")","v":""},null,null,{"$f":"IF(A47<='Для заполнения'!$D$13,\"(командировка)\",\"\")","v":""},null,null,null,null,{"$f":"IF(A47<='Для заполнения'!$D$13,IF(ISNUMBER(FIND(CONCATENATE(\",\",DAY(A47),\".\",TEXT(MONTH(A47),\"00\"),\".\",YEAR(A47)),$B$31)),\"\",CONCATENATE(TEXT(DAY(A47),\"00\"),\".\",TEXT(MONTH(A47),\"00\"),\".\",YEAR(A47))),\"\")","v":""}]
["2020-02-15",{"$f":"IF(A48<='Для заполнения'!$D$13,IF(ISNUMBER(FIND(CONCATENATE(\",\",DAY(A48),\".\",TEXT(MONTH(A48),\"00\"),\".\",YEAR(A48)),$B$31)),CONCATENATE(TEXT(DAY(A48),\"00\"),\".\",TEXT(MONTH(A48),\"00\"),\".\",YEAR(A48)),\"\"),\"\")","v":""},null,null,{"$f":"IF(A48<='Для заполнения'!$D$13,\"(командировка)\",\"\")","v":""},null,null,null,null,{"$f":"IF(A48<='Для заполнения'!$D$13,IF(ISNUMBER(FIND(CONCATENATE(\",\",DAY(A48),\".\",TEXT(MONTH(A48),\"00\"),\".\",YEAR(A48)),$B$31)),\"\",CONCATENATE(TEXT(DAY(A48),\"00\"),\".\",TEXT(MONTH(A48),\"00\"),\".\",YEAR(A48))),\"\")","v":""}]
["2020-02-16",{"$f":"IF(A49<='Для заполнения'!$D$13,IF(ISNUMBER(FIND(CONCATENATE(\",\",DAY(A49),\".\",TEXT(MONTH(A49),\"00\"),\".\",YEAR(A49)),$B$31)),CONCATENATE(TEXT(DAY(A49),\"00\"),\".\",TEXT(MONTH(A49),\"00\"),\".\",YEAR(A49)),\"\"),\"\")","v":""},null,null,{"$f":"IF(A49<='Для заполнения'!$D$13,\"(командировка)\",\"\")","v":""},null,null,null,null,{"$f":"IF(A49<='Для заполнения'!$D$13,IF(ISNUMBER(FIND(CONCATENATE(\",\",DAY(A49),\".\",TEXT(MONTH(A49),\"00\"),\".\",YEAR(A49)),$B$31)),\"\",CONCATENATE(TEXT(DAY(A49),\"00\"),\".\",TEXT(MONTH(A49),\"00\"),\".\",YEAR(A49))),\"\")","v":""}]
["2020-02-17",{"$f":"IF(A50<='Для заполнения'!$D$13,IF(ISNUMBER(FIND(CONCATENATE(\",\",DAY(A50),\".\",TEXT(MONTH(A50),\"00\"),\".\",YEAR(A50)),$B$31)),CONCATENATE(TEXT(DAY(A50),\"00\"),\".\",TEXT(MONTH(A50),\"00\"),\".\",YEAR(A50)),\"\"),\"\")","v":""},null,null,{"$f":"IF(A50<='Для заполнения'!$D$13,\"(командировка)\",\"\")","v":""},null,null,null,null,{"$f":"IF(A50<='Для заполнения'!$D$13,IF(ISNUMBER(FIND(CONCATENATE(\",\",DAY(A50),\".\",TEXT(MONTH(A50),\"00\"),\".\",YEAR(A50)),$B$31)),\"\",CONCATENATE(TEXT(DAY(A50),\"00\"),\".\",TEXT(MONTH(A50),\"00\"),\".\",YEAR(A50))),\"\")","v":""}]
["2020-02-18",{"$f":"IF(A51<='Для заполнения'!$D$13,IF(ISNUMBER(FIND(CONCATENATE(\",\",DAY(A51),\".\",TEXT(MONTH(A51),\"00\"),\".\",YEAR(A51)),$B$31)),CONCATENATE(TEXT(DAY(A51),\"00\"),\".\",TEXT(MONTH(A51),\"00\"),\".\",YEAR(A51)),\"\"),\"\")","v":""},null,null,{"$f":"IF(A51<='Для заполнения'!$D$13,\"(командировка)\",\"\")","v":""},null,null,null,null,{"$f":"IF(A51<='Для заполнения'!$D$13,IF(ISNUMBER(FIND(CONCATENATE(\",\",DAY(A51),\".\",TEXT(MONTH(A51),\"00\"),\".\",YEAR(A51)),$B$31)),\"\",CONCATENATE(TEXT(DAY(A51),\"00\"),\".\",TEXT(MONTH(A51),\"00\"),\".\",YEAR(A51))),\"\")","v":""}]
["2020-02-19",{"$f":"IF(A52<='Для заполнения'!$D$13,IF(ISNUMBER(FIND(CONCATENATE(\",\",DAY(A52),\".\",TEXT(MONTH(A52),\"00\"),\".\",YEAR(A52)),$B$31)),CONCATENATE(TEXT(DAY(A52),\"00\"),\".\",TEXT(MONTH(A52),\"00\"),\".\",YEAR(A52)),\"\"),\"\")","v":""},null,null,{"$f":"IF(A52<='Для заполнения'!$D$13,\"(командировка)\",\"\")","v":""},null,null,null,null,{"$f":"IF(A52<='Для заполнения'!$D$13,IF(ISNUMBER(FIND(CONCATENATE(\",\",DAY(A52),\".\",TEXT(MONTH(A52),\"00\"),\".\",YEAR(A52)),$B$31)),\"\",CONCATENATE(TEXT(DAY(A52),\"00\"),\".\",TEXT(MONTH(A52),\"00\"),\".\",YEAR(A52))),\"\")","v":""}]
["2020-02-20",{"$f":"IF(A53<='Для заполнения'!$D$13,IF(ISNUMBER(FIND(CONCATENATE(\",\",DAY(A53),\".\",TEXT(MONTH(A53),\"00\"),\".\",YEAR(A53)),$B$31)),CONCATENATE(TEXT(DAY(A53),\"00\"),\".\",TEXT(MONTH(A53),\"00\"),\".\",YEAR(A53)),\"\"),\"\")","v":""},null,null,{"$f":"IF(A53<='Для заполнения'!$D$13,\"(командировка)\",\"\")","v":""},null,null,null,null,{"$f":"IF(A53<='Для заполнения'!$D$13,IF(ISNUMBER(FIND(CONCATENATE(\",\",DAY(A53),\".\",TEXT(MONTH(A53),\"00\"),\".\",YEAR(A53)),$B$31)),\"\",CONCATENATE(TEXT(DAY(A53),\"00\"),\".\",TEXT(MONTH(A53),\"00\"),\".\",YEAR(A53))),\"\")","v":""}]
["2020-02-21",{"$f":"IF(A54<='Для заполнения'!$D$13,IF(ISNUMBER(FIND(CONCATENATE(\",\",DAY(A54),\".\",TEXT(MONTH(A54),\"00\"),\".\",YEAR(A54)),$B$31)),CONCATENATE(TEXT(DAY(A54),\"00\"),\".\",TEXT(MONTH(A54),\"00\"),\".\",YEAR(A54)),\"\"),\"\")","v":""},null,null,{"$f":"IF(A54<='Для заполнения'!$D$13,\"(командировка)\",\"\")","v":""},null,null,null,null,{"$f":"IF(A54<='Для заполнения'!$D$13,IF(ISNUMBER(FIND(CONCATENATE(\",\",DAY(A54),\".\",TEXT(MONTH(A54),\"00\"),\".\",YEAR(A54)),$B$31)),\"\",CONCATENATE(TEXT(DAY(A54),\"00\"),\".\",TEXT(MONTH(A54),\"00\"),\".\",YEAR(A54))),\"\")","v":""}]
["2020-02-22",{"$f":"IF(A55<='Для заполнения'!$D$13,IF(ISNUMBER(FIND(CONCATENATE(\",\",DAY(A55),\".\",TEXT(MONTH(A55),\"00\"),\".\",YEAR(A55)),$B$31)),CONCATENATE(TEXT(DAY(A55),\"00\"),\".\",TEXT(MONTH(A55),\"00\"),\".\",YEAR(A55)),\"\"),\"\")","v":""},null,null,{"$f":"IF(A55<='Для заполнения'!$D$13,\"(командировка)\",\"\")","v":""},null,null,null,null,{"$f":"IF(A55<='Для заполнения'!$D$13,IF(ISNUMBER(FIND(CONCATENATE(\",\",DAY(A55),\".\",TEXT(MONTH(A55),\"00\"),\".\",YEAR(A55)),$B$31)),\"\",CONCATENATE(TEXT(DAY(A55),\"00\"),\".\",TEXT(MONTH(A55),\"00\"),\".\",YEAR(A55))),\"\")","v":""}]
["2020-02-23",{"$f":"IF(A56<='Для заполнения'!$D$13,IF(ISNUMBER(FIND(CONCATENATE(\",\",DAY(A56),\".\",TEXT(MONTH(A56),\"00\"),\".\",YEAR(A56)),$B$31)),CONCATENATE(TEXT(DAY(A56),\"00\"),\".\",TEXT(MONTH(A56),\"00\"),\".\",YEAR(A56)),\"\"),\"\")","v":""},null,null,{"$f":"IF(A56<='Для заполнения'!$D$13,\"(командировка)\",\"\")","v":""},null,null,null,null,{"$f":"IF(A56<='Для заполнения'!$D$13,IF(ISNUMBER(FIND(CONCATENATE(\",\",DAY(A56),\".\",TEXT(MONTH(A56),\"00\"),\".\",YEAR(A56)),$B$31)),\"\",CONCATENATE(TEXT(DAY(A56),\"00\"),\".\",TEXT(MONTH(A56),\"00\"),\".\",YEAR(A56))),\"\")","v":""}]
["2020-02-24",{"$f":"IF(A57<='Для заполнения'!$D$13,IF(ISNUMBER(FIND(CONCATENATE(\",\",DAY(A57),\".\",TEXT(MONTH(A57),\"00\"),\".\",YEAR(A57)),$B$31)),CONCATENATE(TEXT(DAY(A57),\"00\"),\".\",TEXT(MONTH(A57),\"00\"),\".\",YEAR(A57)),\"\"),\"\")","v":""},null,null,{"$f":"IF(A57<='Для заполнения'!$D$13,\"(командировка)\",\"\")","v":""},null,null,null,null,{"$f":"IF(A57<='Для заполнения'!$D$13,IF(ISNUMBER(FIND(CONCATENATE(\",\",DAY(A57),\".\",TEXT(MONTH(A57),\"00\"),\".\",YEAR(A57)),$B$31)),\"\",CONCATENATE(TEXT(DAY(A57),\"00\"),\".\",TEXT(MONTH(A57),\"00\"),\".\",YEAR(A57))),\"\")","v":""}]
["2020-02-25",{"$f":"IF(A58<='Для заполнения'!$D$13,IF(ISNUMBER(FIND(CONCATENATE(\",\",DAY(A58),\".\",TEXT(MONTH(A58),\"00\"),\".\",YEAR(A58)),$B$31)),CONCATENATE(TEXT(DAY(A58),\"00\"),\".\",TEXT(MONTH(A58),\"00\"),\".\",YEAR(A58)),\"\"),\"\")","v":""},null,null,{"$f":"IF(A58<='Для заполнения'!$D$13,\"(командировка)\",\"\")","v":""},null,null,null,null,{"$f":"IF(A58<='Для заполнения'!$D$13,IF(ISNUMBER(FIND(CONCATENATE(\",\",DAY(A58),\".\",TEXT(MONTH(A58),\"00\"),\".\",YEAR(A58)),$B$31)),\"\",CONCATENATE(TEXT(DAY(A58),\"00\"),\".\",TEXT(MONTH(A58),\"00\"),\".\",YEAR(A58))),\"\")","v":""}]
["2020-02-26",{"$f":"IF(A59<='Для заполнения'!$D$13,IF(ISNUMBER(FIND(CONCATENATE(\",\",DAY(A59),\".\",TEXT(MONTH(A59),\"00\"),\".\",YEAR(A59)),$B$31)),CONCATENATE(TEXT(DAY(A59),\"00\"),\".\",TEXT(MONTH(A59),\"00\"),\".\",YEAR(A59)),\"\"),\"\")","v":""},null,null,{"$f":"IF(A59<='Для заполнения'!$D$13,\"(командировка)\",\"\")","v":""},null,null,null,null,{"$f":"IF(A59<='Для заполнения'!$D$13,IF(ISNUMBER(FIND(CONCATENATE(\",\",DAY(A59),\".\",TEXT(MONTH(A59),\"00\"),\".\",YEAR(A59)),$B$31)),\"\",CONCATENATE(TEXT(DAY(A59),\"00\"),\".\",TEXT(MONTH(A59),\"00\"),\".\",YEAR(A59))),\"\")","v":""}]
["2020-02-27",{"$f":"IF(A60<='Для заполнения'!$D$13,IF(ISNUMBER(FIND(CONCATENATE(\",\",DAY(A60),\".\",TEXT(MONTH(A60),\"00\"),\".\",YEAR(A60)),$B$31)),CONCATENATE(TEXT(DAY(A60),\"00\"),\".\",TEXT(MONTH(A60),\"00\"),\".\",YEAR(A60)),\"\"),\"\")","v":""},null,null,{"$f":"IF(A60<='Для заполнения'!$D$13,\"(командировка)\",\"\")","v":""},null,null,null,null,{"$f":"IF(A60<='Для заполнения'!$D$13,IF(ISNUMBER(FIND(CONCATENATE(\",\",DAY(A60),\".\",TEXT(MONTH(A60),\"00\"),\".\",YEAR(A60)),$B$31)),\"\",CONCATENATE(TEXT(DAY(A60),\"00\"),\".\",TEXT(MONTH(A60),\"00\"),\".\",YEAR(A60))),\"\")","v":""}]
["2020-02-28",{"$f":"IF(A61<='Для заполнения'!$D$13,IF(ISNUMBER(FIND(CONCATENATE(\",\",DAY(A61),\".\",TEXT(MONTH(A61),\"00\"),\".\",YEAR(A61)),$B$31)),CONCATENATE(TEXT(DAY(A61),\"00\"),\".\",TEXT(MONTH(A61),\"00\"),\".\",YEAR(A61)),\"\"),\"\")","v":""},null,null,{"$f":"IF(A61<='Для заполнения'!$D$13,\"(командировка)\",\"\")","v":""},null,null,null,null,{"$f":"IF(A61<='Для заполнения'!$D$13,IF(ISNUMBER(FIND(CONCATENATE(\",\",DAY(A61),\".\",TEXT(MONTH(A61),\"00\"),\".\",YEAR(A61)),$B$31)),\"\",CONCATENATE(TEXT(DAY(A61),\"00\"),\".\",TEXT(MONTH(A61),\"00\"),\".\",YEAR(A61))),\"\")","v":""}]
["2020-02-29",{"$f":"IF(A62<='Для заполнения'!$D$13,IF(ISNUMBER(FIND(CONCATENATE(\",\",DAY(A62),\".\",TEXT(MONTH(A62),\"00\"),\".\",YEAR(A62)),$B$31)),CONCATENATE(TEXT(DAY(A62),\"00\"),\".\",TEXT(MONTH(A62),\"00\"),\".\",YEAR(A62)),\"\"),\"\")","v":""},null,null,{"$f":"IF(A62<='Для заполнения'!$D$13,\"(командировка)\",\"\")","v":""},null,null,null,null,{"$f":"IF(A62<='Для заполнения'!$D$13,IF(ISNUMBER(FIND(CONCATENATE(\",\",DAY(A62),\".\",TEXT(MONTH(A62),\"00\"),\".\",YEAR(A62)),$B$31)),\"\",CONCATENATE(TEXT(DAY(A62),\"00\"),\".\",TEXT(MONTH(A62),\"00\"),\".\",YEAR(A62))),\"\")","v":""}]
["2020-03-01",{"$f":"IF(A63<='Для заполнения'!$D$13,IF(ISNUMBER(FIND(CONCATENATE(\",\",DAY(A63),\".\",TEXT(MONTH(A63),\"00\"),\".\",YEAR(A63)),$B$31)),CONCATENATE(TEXT(DAY(A63),\"00\"),\".\",TEXT(MONTH(A63),\"00\"),\".\",YEAR(A63)),\"\"),\"\")","v":""},null,null,{"$f":"IF(A63<='Для заполнения'!$D$13,\"(командировка)\",\"\")","v":""},null,null,null,null,{"$f":"IF(A63<='Для заполнения'!$D$13,IF(ISNUMBER(FIND(CONCATENATE(\",\",DAY(A63),\".\",TEXT(MONTH(A63),\"00\"),\".\",YEAR(A63)),$B$31)),\"\",CONCATENATE(TEXT(DAY(A63),\"00\"),\".\",TEXT(MONTH(A63),\"00\"),\".\",YEAR(A63))),\"\")","v":""}]
["2020-03-02",{"$f":"IF(A64<='Для заполнения'!$D$13,IF(ISNUMBER(FIND(CONCATENATE(\",\",DAY(A64),\".\",TEXT(MONTH(A64),\"00\"),\".\",YEAR(A64)),$B$31)),CONCATENATE(TEXT(DAY(A64),\"00\"),\".\",TEXT(MONTH(A64),\"00\"),\".\",YEAR(A64)),\"\"),\"\")","v":""},null,null,{"$f":"IF(A64<='Для заполнения'!$D$13,\"(командировка)\",\"\")","v":""},null,null,null,null,{"$f":"IF(A64<='Для заполнения'!$D$13,IF(ISNUMBER(FIND(CONCATENATE(\",\",DAY(A64),\".\",TEXT(MONTH(A64),\"00\"),\".\",YEAR(A64)),$B$31)),\"\",CONCATENATE(TEXT(DAY(A64),\"00\"),\".\",TEXT(MONTH(A64),\"00\"),\".\",YEAR(A64))),\"\")","v":""}]
["2020-03-03",{"$f":"IF(A65<='Для заполнения'!$D$13,IF(ISNUMBER(FIND(CONCATENATE(\",\",DAY(A65),\".\",TEXT(MONTH(A65),\"00\"),\".\",YEAR(A65)),$B$31)),CONCATENATE(TEXT(DAY(A65),\"00\"),\".\",TEXT(MONTH(A65),\"00\"),\".\",YEAR(A65)),\"\"),\"\")","v":""},null,null,{"$f":"IF(A65<='Для заполнения'!$D$13,\"(командировка)\",\"\")","v":""},null,null,null,null,{"$f":"IF(A65<='Для заполнения'!$D$13,IF(ISNUMBER(FIND(CONCATENATE(\",\",DAY(A65),\".\",TEXT(MONTH(A65),\"00\"),\".\",YEAR(A65)),$B$31)),\"\",CONCATENATE(TEXT(DAY(A65),\"00\"),\".\",TEXT(MONTH(A65),\"00\"),\".\",YEAR(A65))),\"\")","v":""}]
[{"$f":"A65+1","v":"2020-03-04"},{"$f":"IF(A66<='Для заполнения'!$D$13,IF(ISNUMBER(FIND(CONCATENATE(\",\",DAY(A66),\".\",TEXT(MONTH(A66),\"00\"),\".\",YEAR(A66)),$B$31)),CONCATENATE(TEXT(DAY(A66),\"00\"),\".\",TEXT(MONTH(A66),\"00\"),\".\",YEAR(A66)),\"\"),\"\")","v":""},null,null,{"$f":"IF(A66<='Для заполнения'!$D$13,\"(командировка)\",\"\")","v":""},null,null,null,null,{"$f":"IF(A66<='Для заполнения'!$D$13,IF(ISNUMBER(FIND(CONCATENATE(\",\",DAY(A66),\".\",TEXT(MONTH(A66),\"00\"),\".\",YEAR(A66)),$B$31)),\"\",CONCATENATE(TEXT(DAY(A66),\"00\"),\".\",TEXT(MONTH(A66),\"00\"),\".\",YEAR(A66))),\"\")","v":""}]
["2020-03-05",{"$f":"IF(A67<='Для заполнения'!$D$13,IF(ISNUMBER(FIND(CONCATENATE(\",\",DAY(A67),\".\",TEXT(MONTH(A67),\"00\"),\".\",YEAR(A67)),$B$31)),CONCATENATE(TEXT(DAY(A67),\"00\"),\".\",TEXT(MONTH(A67),\"00\"),\".\",YEAR(A67)),\"\"),\"\")","v":""},null,null,{"$f":"IF(A67<='Для заполнения'!$D$13,\"(командировка)\",\"\")","v":""},null,null,null,null,{"$f":"IF(A67<='Для заполнения'!$D$13,IF(ISNUMBER(FIND(CONCATENATE(\",\",DAY(A67),\".\",TEXT(MONTH(A67),\"00\"),\".\",YEAR(A67)),$B$31)),\"\",CONCATENATE(TEXT(DAY(A67),\"00\"),\".\",TEXT(MONTH(A67),\"00\"),\".\",YEAR(A67))),\"\")","v":""}]
["2020-03-06",{"$f":"IF(A68<='Для заполнения'!$D$13,IF(ISNUMBER(FIND(CONCATENATE(\",\",DAY(A68),\".\",TEXT(MONTH(A68),\"00\"),\".\",YEAR(A68)),$B$31)),CONCATENATE(TEXT(DAY(A68),\"00\"),\".\",TEXT(MONTH(A68),\"00\"),\".\",YEAR(A68)),\"\"),\"\")","v":""},null,null,{"$f":"IF(A68<='Для заполнения'!$D$13,\"(командировка)\",\"\")","v":""},null,null,null,null,{"$f":"IF(A68<='Для заполнения'!$D$13,IF(ISNUMBER(FIND(CONCATENATE(\",\",DAY(A68),\".\",TEXT(MONTH(A68),\"00\"),\".\",YEAR(A68)),$B$31)),\"\",CONCATENATE(TEXT(DAY(A68),\"00\"),\".\",TEXT(MONTH(A68),\"00\"),\".\",YEAR(A68))),\"\")","v":""}]
["2020-03-07",{"$f":"IF(A69<='Для заполнения'!$D$13,IF(ISNUMBER(FIND(CONCATENATE(\",\",DAY(A69),\".\",TEXT(MONTH(A69),\"00\"),\".\",YEAR(A69)),$B$31)),CONCATENATE(TEXT(DAY(A69),\"00\"),\".\",TEXT(MONTH(A69),\"00\"),\".\",YEAR(A69)),\"\"),\"\")","v":""},null,null,{"$f":"IF(A69<='Для заполнения'!$D$13,\"(командировка)\",\"\")","v":""},null,null,null,null,{"$f":"IF(A69<='Для заполнения'!$D$13,IF(ISNUMBER(FIND(CONCATENATE(\",\",DAY(A69),\".\",TEXT(MONTH(A69),\"00\"),\".\",YEAR(A69)),$B$31)),\"\",CONCATENATE(TEXT(DAY(A69),\"00\"),\".\",TEXT(MONTH(A69),\"00\"),\".\",YEAR(A69))),\"\")","v":""}]
["2020-03-08",{"$f":"IF(A70<='Для заполнения'!$D$13,IF(ISNUMBER(FIND(CONCATENATE(\",\",DAY(A70),\".\",TEXT(MONTH(A70),\"00\"),\".\",YEAR(A70)),$B$31)),CONCATENATE(TEXT(DAY(A70),\"00\"),\".\",TEXT(MONTH(A70),\"00\"),\".\",YEAR(A70)),\"\"),\"\")","v":""},null,null,{"$f":"IF(A70<='Для заполнения'!$D$13,\"(командировка)\",\"\")","v":""},null,null,null,null,{"$f":"IF(A70<='Для заполнения'!$D$13,IF(ISNUMBER(FIND(CONCATENATE(\",\",DAY(A70),\".\",TEXT(MONTH(A70),\"00\"),\".\",YEAR(A70)),$B$31)),\"\",CONCATENATE(TEXT(DAY(A70),\"00\"),\".\",TEXT(MONTH(A70),\"00\"),\".\",YEAR(A70))),\"\")","v":""}]
["2020-03-09",{"$f":"IF(A71<='Для заполнения'!$D$13,IF(ISNUMBER(FIND(CONCATENATE(\",\",DAY(A71),\".\",TEXT(MONTH(A71),\"00\"),\".\",YEAR(A71)),$B$31)),CONCATENATE(TEXT(DAY(A71),\"00\"),\".\",TEXT(MONTH(A71),\"00\"),\".\",YEAR(A71)),\"\"),\"\")","v":""},null,null,{"$f":"IF(A71<='Для заполнения'!$D$13,\"(командировка)\",\"\")","v":""},null,null,null,null,{"$f":"IF(A71<='Для заполнения'!$D$13,IF(ISNUMBER(FIND(CONCATENATE(\",\",DAY(A71),\".\",TEXT(MONTH(A71),\"00\"),\".\",YEAR(A71)),$B$31)),\"\",CONCATENATE(TEXT(DAY(A71),\"00\"),\".\",TEXT(MONTH(A71),\"00\"),\".\",YEAR(A71))),\"\")","v":""}]
["2020-03-10",{"$f":"IF(A72<='Для заполнения'!$D$13,IF(ISNUMBER(FIND(CONCATENATE(\",\",DAY(A72),\".\",TEXT(MONTH(A72),\"00\"),\".\",YEAR(A72)),$B$31)),CONCATENATE(TEXT(DAY(A72),\"00\"),\".\",TEXT(MONTH(A72),\"00\"),\".\",YEAR(A72)),\"\"),\"\")","v":""},null,null,{"$f":"IF(A72<='Для заполнения'!$D$13,\"(командировка)\",\"\")","v":""},null,null,null,null,{"$f":"IF(A72<='Для заполнения'!$D$13,IF(ISNUMBER(FIND(CONCATENATE(\",\",DAY(A72),\".\",TEXT(MONTH(A72),\"00\"),\".\",YEAR(A72)),$B$31)),\"\",CONCATENATE(TEXT(DAY(A72),\"00\"),\".\",TEXT(MONTH(A72),\"00\"),\".\",YEAR(A72))),\"\")","v":""}]
["2020-03-11",{"$f":"IF(A73<='Для заполнения'!$D$13,IF(ISNUMBER(FIND(CONCATENATE(\",\",DAY(A73),\".\",TEXT(MONTH(A73),\"00\"),\".\",YEAR(A73)),$B$31)),CONCATENATE(TEXT(DAY(A73),\"00\"),\".\",TEXT(MONTH(A73),\"00\"),\".\",YEAR(A73)),\"\"),\"\")","v":""},null,null,{"$f":"IF(A73<='Для заполнения'!$D$13,\"(командировка)\",\"\")","v":""},null,null,null,null,{"$f":"IF(A73<='Для заполнения'!$D$13,IF(ISNUMBER(FIND(CONCATENATE(\",\",DAY(A73),\".\",TEXT(MONTH(A73),\"00\"),\".\",YEAR(A73)),$B$31)),\"\",CONCATENATE(TEXT(DAY(A73),\"00\"),\".\",TEXT(MONTH(A73),\"00\"),\".\",YEAR(A73))),\"\")","v":""}]
["2020-03-12",{"$f":"IF(A74<='Для заполнения'!$D$13,IF(ISNUMBER(FIND(CONCATENATE(\",\",DAY(A74),\".\",TEXT(MONTH(A74),\"00\"),\".\",YEAR(A74)),$B$31)),CONCATENATE(TEXT(DAY(A74),\"00\"),\".\",TEXT(MONTH(A74),\"00\"),\".\",YEAR(A74)),\"\"),\"\")","v":""},null,null,{"$f":"IF(A74<='Для заполнения'!$D$13,\"(командировка)\",\"\")","v":""},null,null,null,null,{"$f":"IF(A74<='Для заполнения'!$D$13,IF(ISNUMBER(FIND(CONCATENATE(\",\",DAY(A74),\".\",TEXT(MONTH(A74),\"00\"),\".\",YEAR(A74)),$B$31)),\"\",CONCATENATE(TEXT(DAY(A74),\"00\"),\".\",TEXT(MONTH(A74),\"00\"),\".\",YEAR(A74))),\"\")","v":""}]
["2020-03-13",{"$f":"IF(A75<='Для заполнения'!$D$13,IF(ISNUMBER(FIND(CONCATENATE(\",\",DAY(A75),\".\",TEXT(MONTH(A75),\"00\"),\".\",YEAR(A75)),$B$31)),CONCATENATE(TEXT(DAY(A75),\"00\"),\".\",TEXT(MONTH(A75),\"00\"),\".\",YEAR(A75)),\"\"),\"\")","v":""},null,null,{"$f":"IF(A75<='Для заполнения'!$D$13,\"(командировка)\",\"\")","v":""},null,null,null,null,{"$f":"IF(A75<='Для заполнения'!$D$13,IF(ISNUMBER(FIND(CONCATENATE(\",\",DAY(A75),\".\",TEXT(MONTH(A75),\"00\"),\".\",YEAR(A75)),$B$31)),\"\",CONCATENATE(TEXT(DAY(A75),\"00\"),\".\",TEXT(MONTH(A75),\"00\"),\".\",YEAR(A75))),\"\")","v":""}]
["2020-03-14",{"$f":"IF(A76<='Для заполнения'!$D$13,IF(ISNUMBER(FIND(CONCATENATE(\",\",DAY(A76),\".\",TEXT(MONTH(A76),\"00\"),\".\",YEAR(A76)),$B$31)),CONCATENATE(TEXT(DAY(A76),\"00\"),\".\",TEXT(MONTH(A76),\"00\"),\".\",YEAR(A76)),\"\"),\"\")","v":""},null,null,{"$f":"IF(A76<='Для заполнения'!$D$13,\"(командировка)\",\"\")","v":""},null,null,null,null,{"$f":"IF(A76<='Для заполнения'!$D$13,IF(ISNUMBER(FIND(CONCATENATE(\",\",DAY(A76),\".\",TEXT(MONTH(A76),\"00\"),\".\",YEAR(A76)),$B$31)),\"\",CONCATENATE(TEXT(DAY(A76),\"00\"),\".\",TEXT(MONTH(A76),\"00\"),\".\",YEAR(A76))),\"\")","v":""}]
["2020-03-15",{"$f":"IF(A77<='Для заполнения'!$D$13,IF(ISNUMBER(FIND(CONCATENATE(\",\",DAY(A77),\".\",TEXT(MONTH(A77),\"00\"),\".\",YEAR(A77)),$B$31)),CONCATENATE(TEXT(DAY(A77),\"00\"),\".\",TEXT(MONTH(A77),\"00\"),\".\",YEAR(A77)),\"\"),\"\")","v":""},null,null,{"$f":"IF(A77<='Для заполнения'!$D$13,\"(командировка)\",\"\")","v":""},null,null,null,null,{"$f":"IF(A77<='Для заполнения'!$D$13,IF(ISNUMBER(FIND(CONCATENATE(\",\",DAY(A77),\".\",TEXT(MONTH(A77),\"00\"),\".\",YEAR(A77)),$B$31)),\"\",CONCATENATE(TEXT(DAY(A77),\"00\"),\".\",TEXT(MONTH(A77),\"00\"),\".\",YEAR(A77))),\"\")","v":""}]
["2020-03-16",{"$f":"IF(A78<='Для заполнения'!$D$13,IF(ISNUMBER(FIND(CONCATENATE(\",\",DAY(A78),\".\",TEXT(MONTH(A78),\"00\"),\".\",YEAR(A78)),$B$31)),CONCATENATE(TEXT(DAY(A78),\"00\"),\".\",TEXT(MONTH(A78),\"00\"),\".\",YEAR(A78)),\"\"),\"\")","v":""},null,null,{"$f":"IF(A78<='Для заполнения'!$D$13,\"(командировка)\",\"\")","v":""},null,null,null,null,{"$f":"IF(A78<='Для заполнения'!$D$13,IF(ISNUMBER(FIND(CONCATENATE(\",\",DAY(A78),\".\",TEXT(MONTH(A78),\"00\"),\".\",YEAR(A78)),$B$31)),\"\",CONCATENATE(TEXT(DAY(A78),\"00\"),\".\",TEXT(MONTH(A78),\"00\"),\".\",YEAR(A78))),\"\")","v":""}]
["2020-03-17",{"$f":"IF(A79<='Для заполнения'!$D$13,IF(ISNUMBER(FIND(CONCATENATE(\",\",DAY(A79),\".\",TEXT(MONTH(A79),\"00\"),\".\",YEAR(A79)),$B$31)),CONCATENATE(TEXT(DAY(A79),\"00\"),\".\",TEXT(MONTH(A79),\"00\"),\".\",YEAR(A79)),\"\"),\"\")","v":""},null,null,{"$f":"IF(A79<='Для заполнения'!$D$13,\"(командировка)\",\"\")","v":""},null,null,null,null,{"$f":"IF(A79<='Для заполнения'!$D$13,IF(ISNUMBER(FIND(CONCATENATE(\",\",DAY(A79),\".\",TEXT(MONTH(A79),\"00\"),\".\",YEAR(A79)),$B$31)),\"\",CONCATENATE(TEXT(DAY(A79),\"00\"),\".\",TEXT(MONTH(A79),\"00\"),\".\",YEAR(A79))),\"\")","v":""}]
["2020-03-18",{"$f":"IF(A80<='Для заполнения'!$D$13,IF(ISNUMBER(FIND(CONCATENATE(\",\",DAY(A80),\".\",TEXT(MONTH(A80),\"00\"),\".\",YEAR(A80)),$B$31)),CONCATENATE(TEXT(DAY(A80),\"00\"),\".\",TEXT(MONTH(A80),\"00\"),\".\",YEAR(A80)),\"\"),\"\")","v":""},null,null,{"$f":"IF(A80<='Для заполнения'!$D$13,\"(командировка)\",\"\")","v":""},null,null,null,null,{"$f":"IF(A80<='Для заполнения'!$D$13,IF(ISNUMBER(FIND(CONCATENATE(\",\",DAY(A80),\".\",TEXT(MONTH(A80),\"00\"),\".\",YEAR(A80)),$B$31)),\"\",CONCATENATE(TEXT(DAY(A80),\"00\"),\".\",TEXT(MONTH(A80),\"00\"),\".\",YEAR(A80))),\"\")","v":""}]
["2020-03-19",{"$f":"IF(A81<='Для заполнения'!$D$13,IF(ISNUMBER(FIND(CONCATENATE(\",\",DAY(A81),\".\",TEXT(MONTH(A81),\"00\"),\".\",YEAR(A81)),$B$31)),CONCATENATE(TEXT(DAY(A81),\"00\"),\".\",TEXT(MONTH(A81),\"00\"),\".\",YEAR(A81)),\"\"),\"\")","v":""},null,null,{"$f":"IF(A81<='Для заполнения'!$D$13,\"(командировка)\",\"\")","v":""},null,null,null,null,{"$f":"IF(A81<='Для заполнения'!$D$13,IF(ISNUMBER(FIND(CONCATENATE(\",\",DAY(A81),\".\",TEXT(MONTH(A81),\"00\"),\".\",YEAR(A81)),$B$31)),\"\",CONCATENATE(TEXT(DAY(A81),\"00\"),\".\",TEXT(MONTH(A81),\"00\"),\".\",YEAR(A81))),\"\")","v":""}]
["2020-03-20",{"$f":"IF(A82<='Для заполнения'!$D$13,IF(ISNUMBER(FIND(CONCATENATE(\",\",DAY(A82),\".\",TEXT(MONTH(A82),\"00\"),\".\",YEAR(A82)),$B$31)),CONCATENATE(TEXT(DAY(A82),\"00\"),\".\",TEXT(MONTH(A82),\"00\"),\".\",YEAR(A82)),\"\"),\"\")","v":""},null,null,{"$f":"IF(A82<='Для заполнения'!$D$13,\"(командировка)\",\"\")","v":""},null,null,null,null,{"$f":"IF(A82<='Для заполнения'!$D$13,IF(ISNUMBER(FIND(CONCATENATE(\",\",DAY(A82),\".\",TEXT(MONTH(A82),\"00\"),\".\",YEAR(A82)),$B$31)),\"\",CONCATENATE(TEXT(DAY(A82),\"00\"),\".\",TEXT(MONTH(A82),\"00\"),\".\",YEAR(A82))),\"\")","v":""}]
["2020-03-21",{"$f":"IF(A83<='Для заполнения'!$D$13,IF(ISNUMBER(FIND(CONCATENATE(\",\",DAY(A83),\".\",TEXT(MONTH(A83),\"00\"),\".\",YEAR(A83)),$B$31)),CONCATENATE(TEXT(DAY(A83),\"00\"),\".\",TEXT(MONTH(A83),\"00\"),\".\",YEAR(A83)),\"\"),\"\")","v":""},null,null,{"$f":"IF(A83<='Для заполнения'!$D$13,\"(командировка)\",\"\")","v":""},null,null,null,null,{"$f":"IF(A83<='Для заполнения'!$D$13,IF(ISNUMBER(FIND(CONCATENATE(\",\",DAY(A83),\".\",TEXT(MONTH(A83),\"00\"),\".\",YEAR(A83)),$B$31)),\"\",CONCATENATE(TEXT(DAY(A83),\"00\"),\".\",TEXT(MONTH(A83),\"00\"),\".\",YEAR(A83))),\"\")","v":""}]
["2020-03-22",{"$f":"IF(A84<='Для заполнения'!$D$13,IF(ISNUMBER(FIND(CONCATENATE(\",\",DAY(A84),\".\",TEXT(MONTH(A84),\"00\"),\".\",YEAR(A84)),$B$31)),CONCATENATE(TEXT(DAY(A84),\"00\"),\".\",TEXT(MONTH(A84),\"00\"),\".\",YEAR(A84)),\"\"),\"\")","v":""},null,null,{"$f":"IF(A84<='Для заполнения'!$D$13,\"(командировка)\",\"\")","v":""},null,null,null,null,{"$f":"IF(A84<='Для заполнения'!$D$13,IF(ISNUMBER(FIND(CONCATENATE(\",\",DAY(A84),\".\",TEXT(MONTH(A84),\"00\"),\".\",YEAR(A84)),$B$31)),\"\",CONCATENATE(TEXT(DAY(A84),\"00\"),\".\",TEXT(MONTH(A84),\"00\"),\".\",YEAR(A84))),\"\")","v":""}]
["2020-03-23",{"$f":"IF(A85<='Для заполнения'!$D$13,IF(ISNUMBER(FIND(CONCATENATE(\",\",DAY(A85),\".\",TEXT(MONTH(A85),\"00\"),\".\",YEAR(A85)),$B$31)),CONCATENATE(TEXT(DAY(A85),\"00\"),\".\",TEXT(MONTH(A85),\"00\"),\".\",YEAR(A85)),\"\"),\"\")","v":""},null,null,{"$f":"IF(A85<='Для заполнения'!$D$13,\"(командировка)\",\"\")","v":""},null,null,null,null,{"$f":"IF(A85<='Для заполнения'!$D$13,IF(ISNUMBER(FIND(CONCATENATE(\",\",DAY(A85),\".\",TEXT(MONTH(A85),\"00\"),\".\",YEAR(A85)),$B$31)),\"\",CONCATENATE(TEXT(DAY(A85),\"00\"),\".\",TEXT(MONTH(A85),\"00\"),\".\",YEAR(A85))),\"\")","v":""}]
["2020-03-24",{"$f":"IF(A86<='Для заполнения'!$D$13,IF(ISNUMBER(FIND(CONCATENATE(\",\",DAY(A86),\".\",TEXT(MONTH(A86),\"00\"),\".\",YEAR(A86)),$B$31)),CONCATENATE(TEXT(DAY(A86),\"00\"),\".\",TEXT(MONTH(A86),\"00\"),\".\",YEAR(A86)),\"\"),\"\")","v":""},null,null,{"$f":"IF(A86<='Для заполнения'!$D$13,\"(командировка)\",\"\")","v":""},null,null,null,null,{"$f":"IF(A86<='Для заполнения'!$D$13,IF(ISNUMBER(FIND(CONCATENATE(\",\",DAY(A86),\".\",TEXT(MONTH(A86),\"00\"),\".\",YEAR(A86)),$B$31)),\"\",CONCATENATE(TEXT(DAY(A86),\"00\"),\".\",TEXT(MONTH(A86),\"00\"),\".\",YEAR(A86))),\"\")","v":""}]
["2020-03-25",{"$f":"IF(A87<='Для заполнения'!$D$13,IF(ISNUMBER(FIND(CONCATENATE(\",\",DAY(A87),\".\",TEXT(MONTH(A87),\"00\"),\".\",YEAR(A87)),$B$31)),CONCATENATE(TEXT(DAY(A87),\"00\"),\".\",TEXT(MONTH(A87),\"00\"),\".\",YEAR(A87)),\"\"),\"\")","v":""},null,null,{"$f":"IF(A87<='Для заполнения'!$D$13,\"(командировка)\",\"\")","v":""},null,null,null,null,{"$f":"IF(A87<='Для заполнения'!$D$13,IF(ISNUMBER(FIND(CONCATENATE(\",\",DAY(A87),\".\",TEXT(MONTH(A87),\"00\"),\".\",YEAR(A87)),$B$31)),\"\",CONCATENATE(TEXT(DAY(A87),\"00\"),\".\",TEXT(MONTH(A87),\"00\"),\".\",YEAR(A87))),\"\")","v":""}]
["2020-03-26",{"$f":"IF(A88<='Для заполнения'!$D$13,IF(ISNUMBER(FIND(CONCATENATE(\",\",DAY(A88),\".\",TEXT(MONTH(A88),\"00\"),\".\",YEAR(A88)),$B$31)),CONCATENATE(TEXT(DAY(A88),\"00\"),\".\",TEXT(MONTH(A88),\"00\"),\".\",YEAR(A88)),\"\"),\"\")","v":""},null,null,{"$f":"IF(A88<='Для заполнения'!$D$13,\"(командировка)\",\"\")","v":""},null,null,null,null,{"$f":"IF(A88<='Для заполнения'!$D$13,IF(ISNUMBER(FIND(CONCATENATE(\",\",DAY(A88),\".\",TEXT(MONTH(A88),\"00\"),\".\",YEAR(A88)),$B$31)),\"\",CONCATENATE(TEXT(DAY(A88),\"00\"),\".\",TEXT(MONTH(A88),\"00\"),\".\",YEAR(A88))),\"\")","v":""}]
["2020-03-27",{"$f":"IF(A89<='Для заполнения'!$D$13,IF(ISNUMBER(FIND(CONCATENATE(\",\",DAY(A89),\".\",TEXT(MONTH(A89),\"00\"),\".\",YEAR(A89)),$B$31)),CONCATENATE(TEXT(DAY(A89),\"00\"),\".\",TEXT(MONTH(A89),\"00\"),\".\",YEAR(A89)),\"\"),\"\")","v":""},null,null,{"$f":"IF(A89<='Для заполнения'!$D$13,\"(командировка)\",\"\")","v":""},null,null,null,null,{"$f":"IF(A89<='Для заполнения'!$D$13,IF(ISNUMBER(FIND(CONCATENATE(\",\",DAY(A89),\".\",TEXT(MONTH(A89),\"00\"),\".\",YEAR(A89)),$B$31)),\"\",CONCATENATE(TEXT(DAY(A89),\"00\"),\".\",TEXT(MONTH(A89),\"00\"),\".\",YEAR(A89))),\"\")","v":""}]
["2020-03-28",{"$f":"IF(A90<='Для заполнения'!$D$13,IF(ISNUMBER(FIND(CONCATENATE(\",\",DAY(A90),\".\",TEXT(MONTH(A90),\"00\"),\".\",YEAR(A90)),$B$31)),CONCATENATE(TEXT(DAY(A90),\"00\"),\".\",TEXT(MONTH(A90),\"00\"),\".\",YEAR(A90)),\"\"),\"\")","v":""},null,null,{"$f":"IF(A90<='Для заполнения'!$D$13,\"(командировка)\",\"\")","v":""},null,null,null,null,{"$f":"IF(A90<='Для заполнения'!$D$13,IF(ISNUMBER(FIND(CONCATENATE(\",\",DAY(A90),\".\",TEXT(MONTH(A90),\"00\"),\".\",YEAR(A90)),$B$31)),\"\",CONCATENATE(TEXT(DAY(A90),\"00\"),\".\",TEXT(MONTH(A90),\"00\"),\".\",YEAR(A90))),\"\")","v":""}]
["2020-03-29",{"$f":"IF(A91<='Для заполнения'!$D$13,IF(ISNUMBER(FIND(CONCATENATE(\",\",DAY(A91),\".\",TEXT(MONTH(A91),\"00\"),\".\",YEAR(A91)),$B$31)),CONCATENATE(TEXT(DAY(A91),\"00\"),\".\",TEXT(MONTH(A91),\"00\"),\".\",YEAR(A91)),\"\"),\"\")","v":""},null,null,{"$f":"IF(A91<='Для заполнения'!$D$13,\"(командировка)\",\"\")","v":""},null,null,null,null,{"$f":"IF(A91<='Для заполнения'!$D$13,IF(ISNUMBER(FIND(CONCATENATE(\",\",DAY(A91),\".\",TEXT(MONTH(A91),\"00\"),\".\",YEAR(A91)),$B$31)),\"\",CONCATENATE(TEXT(DAY(A91),\"00\"),\".\",TEXT(MONTH(A91),\"00\"),\".\",YEAR(A91))),\"\")","v":""}]
["2020-03-30",{"$f":"IF(A92<='Для заполнения'!$D$13,IF(ISNUMBER(FIND(CONCATENATE(\",\",DAY(A92),\".\",TEXT(MONTH(A92),\"00\"),\".\",YEAR(A92)),$B$31)),CONCATENATE(TEXT(DAY(A92),\"00\"),\".\",TEXT(MONTH(A92),\"00\"),\".\",YEAR(A92)),\"\"),\"\")","v":""},null,null,{"$f":"IF(A92<='Для заполнения'!$D$13,\"(командировка)\",\"\")","v":""},null,null,null,null,{"$f":"IF(A92<='Для заполнения'!$D$13,IF(ISNUMBER(FIND(CONCATENATE(\",\",DAY(A92),\".\",TEXT(MONTH(A92),\"00\"),\".\",YEAR(A92)),$B$31)),\"\",CONCATENATE(TEXT(DAY(A92),\"00\"),\".\",TEXT(MONTH(A92),\"00\"),\".\",YEAR(A92))),\"\")","v":""}]
[]
["Все выходные дни в командировке и даты отпуска одной строкой:",null,null,null,null,null,null,null,null,{"$f":"COUNTA(J33:J92)-COUNTBLANK(J33:J92)","v":3}]
[null,{"$f":"TEXTJOIN(\", \",1,B33:B92)","v":"01.02.2020, 02.02.2020"},null,null,null,null,null,null,null,{"$f":"TEXTJOIN(\", \",1,J33:J92)","v":"31.01.2020, 03.02.2020, 04.02.2020"}]
["Число выходных дней",{"$f":"COUNTA(B33:B92)-COUNTBLANK(B33:B92)","v":2}]
["Формулировки:",{"$f":"IF(B96>1,\"выходные дни\",\"выходной день\")","v":"выходные дни"}]
[null,{"$f":"IF(B96>1,\"другие дни отдыха\",\"другой день отдыха\")","v":"другие дни отдыха"}]
[]
[]
["Склонение подразделения","Исходная строка",null,null,null,"Замена на строку",null,null,null,null,"Длина",null,null,"Промежуточный результат"]
[null,"теплоэнергетическая",null,null,null,"теплоэнергетической",null,null,null,null,{"$f":"LEN(B102)","v":19},null,null,{"$f":"SUBSTITUTE(CONCATENATE(LOWER(LEFT('Для заполнения'!D6,1)),RIGHT('Для заполнения'!D6,LEN('Для заполнения'!D6)-1)),B102,F102)","v":"кафедра физиологии с курсом безопасности жизнедеятельности и медицины катастроф"}]
[null,"специализированный",null,null,null,"специализированного",null,null,null,null,18,null,null,{"$f":"SUBSTITUTE(N102,B103,F103)","v":"кафедра физиологии с курсом безопасности жизнедеятельности и медицины катастроф"}]
[null,"мультипрофильный",null,null,null,"мультипрофильного",null,null,null,null,16,null,null,"кафедра физиологии с курсом безопасности жизнедеятельности и медицины катастроф"]
[null,"ая лаборатория",null,null,null,"ой лаборатории",null,null,null,null,14,null,null,"кафедра физиологии с курсом безопасности жизнедеятельности и медицины катастроф"]
[null,"ое управление",null,null,null,"ого управления",null,null,null,null,13,null,null,"кафедра физиологии с курсом безопасности жизнедеятельности и медицины катастроф"]
[null,"кий институт",null,null,null,"кого института",null,null,null,null,12,null,null,"кафедра физиологии с курсом безопасности жизнедеятельности и медицины катастроф"]
[null,"ое отделение",null,null,null,"ого отделения",null,null,null,null,12,null,null,"кафедра физиологии с курсом безопасности жизнедеятельности и медицины катастроф"]
[null,"ый технопарк",null,null,null,"ого технопарка",null,null,null,null,12,null,null,"кафедра физиологии с курсом безопасности жизнедеятельности и медицины катастроф"]
[null,"бухгалтерия",null,null,null,"бухгалтерии",null,null,null,null,11,null,null,"кафедра физиологии с курсом безопасности жизнедеятельности и медицины катастроф"]
[null,"лаборатория",null,null,null,"лаборатории",null,null,null,null,11,null,null,"кафедра физиологии с курсом безопасности жизнедеятельности и медицины катастроф"]
[null,"секретариат",null,null,null,"секретариата",null,null,null,null,11,null,null,"кафедра физиологии с курсом безопасности жизнедеятельности и медицины катастроф"]
[null,"управление",null,null,null,"управления",null,null,null,null,10,null,null,"кафедра физиологии с курсом безопасности жизнедеятельности и медицины катастроф"]
[null,"ый участок",null,null,null,"ого участка",null,null,null,null,10,null,null,"кафедра физиологии с курсом безопасности жизнедеятельности и медицины катастроф"]
[null,"ая группа",null,null,null,"ой группы",null,null,null,null,9,null,null,"кафедра физиологии с курсом безопасности жизнедеятельности и медицины катастроф"]
[null,"ая служба",null,null,null,"ой службы",null,null,null,null,9,null,null,"кафедра физиологии с курсом безопасности жизнедеятельности и медицины катастроф"]
[null,"отделение",null,null,null,"отделения",null,null,null,null,9,null,null,"кафедра физиологии с курсом безопасности жизнедеятельности и медицины катастроф"]
[null,"самарский",null,null,null,"самарского",null,null,null,null,9,null,null,"кафедра физиологии с курсом безопасности жизнедеятельности и медицины катастроф"]
[null,"технопарк",null,null,null,"технопарка",null,null,null,null,9,null,null,"кафедра физиологии с курсом безопасности жизнедеятельности и медицины катастроф"]
[null,"щий центр",null,null,null,"щего центра",null,null,null,null,9,null,null,"кафедра физиологии с курсом безопасности жизнедеятельности и медицины катастроф"]
[null,"ий отдел",null,null,null,"ого отдела",null,null,null,null,8,null,null,"кафедра физиологии с курсом безопасности жизнедеятельности и медицины катастроф"]
[null,"ий центр",null,null,null,"ого центра",null,null,null,null,8,null,null,"кафедра физиологии с курсом безопасности жизнедеятельности и медицины катастроф"]
[null,"институт",null,null,null,"института",null,null,null,null,8,null,null,"кафедра физиологии с курсом безопасности жизнедеятельности и медицины катастроф"]
[null,"пищеблок",null,null,null,"пищеблока",null,null,null,null,8,null,null,"кафедра физиологии с курсом безопасности жизнедеятельности и медицины катастроф"]
[null,"редакция",null,null,null,"редакции",null,null,null,null,8,null,null,"кафедра физиологии с курсом безопасности жизнедеятельности и медицины катастроф"]
[null,"ректорат",null,null,null,"ректората",null,null,null,null,8,null,null,"кафедра физиологии с курсом безопасности жизнедеятельности и медицины катастроф"]
[null,"ый отдел",null,null,null,"ого отдела",null,null,null,null,8,null,null,"кафедра физиологии с курсом безопасности жизнедеятельности и медицины катастроф"]
[null,"ый центр",null,null,null,"ого центра",null,null,null,null,8,null,null,"кафедра физиологии с курсом безопасности жизнедеятельности и медицины катастроф"]
[null,"виварий",null,null,null,"вивария",null,null,null,null,7,null,null,"кафедра физиологии с курсом безопасности жизнедеятельности и медицины катастроф"]
[null,"деканат",null,null,null,"деканата",null,null,null,null,7,null,null,"кафедра физиологии с курсом безопасности жизнедеятельности и медицины катастроф"]
[null,"детское",null,null,null,"детского",null,null,null,null,7,null,null,"кафедра физиологии с курсом безопасности жизнедеятельности и медицины катастроф"]
[null,"кабинет",null,null,null,"кабинета",null,null,null,null,7,null,null,"кафедра физиологии с курсом безопасности жизнедеятельности и медицины катастроф"]
[null,"кафедра",null,null,null,"кафедры",null,null,null,null,7,null,null,"кафедры физиологии с курсом безопасности жизнедеятельности и медицины катастроф"]
[null,"клиника",null,null,null,"клиники",null,null,null,null,7,null,null,"кафедры физиологии с курсом безопасности жизнедеятельности и медицины катастроф"]
[null,"участок",null,null,null,"участка",null,null,null,null,7,null,null,"кафедры физиологии с курсом безопасности жизнедеятельности и медицины катастроф"]
[null,"ый офис",null,null,null,"ого офиса",null,null,null,null,7,null,null,"кафедры физиологии с курсом безопасности жизнедеятельности и медицины катастроф"]
[null,"аптека",null,null,null,"аптеки",null,null,null,null,6,null,null,"кафедры физиологии с курсом безопасности жизнедеятельности и медицины катастроф"]
[null,"группа",null,null,null,"группы",null,null,null,null,6,null,null,"кафедры физиологии с курсом безопасности жизнедеятельности и медицины катастроф"]
[null,"служба",null,null,null,"службы",null,null,null,null,6,null,null,"кафедры физиологии с курсом безопасности жизнедеятельности и медицины катастроф"]
[null,"студия",null,null,null,"студии",null,null,null,null,6,null,null,"кафедры физиологии с курсом безопасности жизнедеятельности и медицины катастроф"]
[null,"архив",null,null,null,"архива",null,null,null,null,5,null,null,"кафедры физиологии с курсом безопасности жизнедеятельности и медицины катастроф"]
[null,"кухня",null,null,null,"кухни",null,null,null,null,5,null,null,"кафедры физиологии с курсом безопасности жизнедеятельности и медицины катастроф"]
[null,"отдел",null,null,null,"отдела",null,null,null,null,5,null,null,"кафедры физиологии с курсом безопасности жизнедеятельности и медицины катастроф"]
[null,"центр",null,null,null,"центра",null,null,null,null,5,null,null,"кафедры физиологии с курсом безопасности жизнедеятельности и медицины катастроф"]
[null,"офис",null,null,null,"офиса",null,null,null,null,4,null,null,"кафедры физиологии с курсом безопасности жизнедеятельности и медицины катастроф"]
["Результат:",{"$f":"TRIM(N145)","v":"кафедры физиологии с курсом безопасности жизнедеятельности и медицины катастроф"}]
[]
[]
["Склонение должности","Исходная строка",null,null,null,"Замена на строку",null,null,null,null,"Длина",null,null,"Промежуточный результат",null,null,null,null,null,"Промежуточный результат"]
[null,"заведующая лабораторией",null,null,null,"заведующей лабораторией",null,null,null,null,{"$f":"LEN(B150)","v":23},null,null,{"$f":"SUBSTITUTE(LOWER('Для заполнения'!D7),B150,F150)","v":"заведующий кафедрой"},null,null,null,null,null,{"$f":"SUBSTITUTE(LOWER('Для заполнения'!D23),B150,F150)","v":"лаборант лаборатории социально-психологических исследований"}]
[null,"заведующий лабораторией",null,null,null,"заведующего лабораторией",null,null,null,null,23,null,null,{"$f":"SUBSTITUTE(N150,B151,F151)","v":"заведующий кафедрой"},null,null,null,null,null,{"$f":"SUBSTITUTE(T150,B151,F151)","v":"лаборант лаборатории социально-психологических исследований"}]
[null,"инженер-программист",null,null,null,"инженера-программиста",null,null,null,null,19,null,null,"заведующий кафедрой",null,null,null,null,null,"лаборант лаборатории социально-психологических исследований"]
[null,"медицинская сестра",null,null,null,"медицинской сестры",null,null,null,null,18,null,null,"заведующий кафедрой",null,null,null,null,null,"лаборант лаборатории социально-психологических исследований"]
[null,"системный аналитик",null,null,null,"системного аналитика",null,null,null,null,18,null,null,"заведующий кафедрой",null,null,null,null,null,"лаборант лаборатории социально-психологических исследований"]
[null,"научный сотрудник",null,null,null,"научного сотрудника",null,null,null,null,17,null,null,"заведующий кафедрой",null,null,null,null,null,"лаборант лаборатории социально-психологических исследований"]
[null,"преподаватель",null,null,null,"преподавателя",null,null,null,null,13,null,null,"заведующий кафедрой",null,null,null,null,null,"лаборант лаборатории социально-психологических исследований"]
[null,"программист",null,null,null,"программиста",null,null,null,null,11,null,null,"заведующий кафедрой",null,null,null,null,null,"лаборант лаборатории социально-психологических исследований"]
[null,"тестировщик",null,null,null,"тестировщика",null,null,null,null,11,null,null,"заведующий кафедрой",null,null,null,null,null,"лаборант лаборатории социально-психологических исследований"]
[null,"ассистент ",null,null,null,"ассистента",null,null,null,null,10,null,null,"заведующий кафедрой",null,null,null,null,null,"лаборант лаборатории социально-психологических исследований"]
[null,"заведующая",null,null,null,"заведующей",null,null,null,null,10,null,null,"заведующий кафедрой",null,null,null,null,null,"лаборант лаборатории социально-психологических исследований"]
[null,"заведующий",null,null,null,"заведующего",null,null,null,null,10,null,null,"заведующего кафедрой",null,null,null,null,null,"лаборант лаборатории социально-психологических исследований"]
[null,"соискатель",null,null,null,"соискателя",null,null,null,null,10,null,null,"заведующего кафедрой",null,null,null,null,null,"лаборант лаборатории социально-психологических исследований"]
[null,"специалист",null,null,null,"специалиста",null,null,null,null,10,null,null,"заведующего кафедрой",null,null,null,null,null,"лаборант лаборатории социально-психологических исследований"]
[null,"начальник",null,null,null,"начальника",null,null,null,null,9,null,null,"заведующего кафедрой",null,null,null,null,null,"лаборант лаборатории социально-психологических исследований"]
[null,"ординатор",null,null,null,"ординатора",null,null,null,null,9,null,null,"заведующего кафедрой",null,null,null,null,null,"лаборант лаборатории социально-психологических исследований"]
[null,"профессор",null,null,null,"профессора",null,null,null,null,9,null,null,"заведующего кафедрой",null,null,null,null,null,"лаборант лаборатории социально-психологических исследований"]
[null,"аналитик",null,null,null,"аналитика",null,null,null,null,8,null,null,"заведующего кафедрой",null,null,null,null,null,"лаборант лаборатории социально-психологических исследований"]
[null,"аспирант",null,null,null,"аспиранта",null,null,null,null,8,null,null,"заведующего кафедрой",null,null,null,null,null,"лаборант лаборатории социально-психологических исследований"]
[null,"дизайнер",null,null,null,"дизайнера",null,null,null,null,8,null,null,"заведующего кафедрой",null,null,null,null,null,"лаборант лаборатории социально-психологических исследований"]
[null,"кандидат",null,null,null,"кандидата",null,null,null,null,8,null,null,"заведующего кафедрой",null,null,null,null,null,"лаборант лаборатории социально-психологических исследований"]
[null,"лаборант",null,null,null,"лаборанта",null,null,null,null,8,null,null,"заведующего кафедрой",null,null,null,null,null,"лаборанта лаборатории социально-психологических исследований"]
[null,"ведущий",null,null,null,"ведущего",null,null,null,null,7,null,null,"заведующего кафедрой",null,null,null,null,null,"лаборанта лаборатории социально-психологических исследований"]
[null,"главный",null,null,null,"главного",null,null,null,null,7,null,null,"заведующего кафедрой",null,null,null,null,null,"лаборанта лаборатории социально-психологических исследований"]
[null,"главный",null,null,null,"главного",null,null,null,null,7,null,null,"заведующего кафедрой",null,null,null,null,null,"лаборанта лаборатории социально-психологических исследований"]
[null,"заочный",null,null,null,"заочного",null,null,null,null,7,null,null,"заведующего кафедрой",null,null,null,null,null,"лаборанта лаборатории социально-психологических исследований"]
[null,"инженер",null,null,null,"инженера",null,null,null,null,7,null,null,"заведующего кафедрой",null,null,null,null,null,"лаборанта лаборатории социально-психологических исследований"]
[null,"младший",null,null,null,"младшего",null,null,null,null,7,null,null,"заведующего кафедрой",null,null,null,null,null,"лаборанта лаборатории социально-психологических исследований"]
[null,"старший",null,null,null,"старшего",null,null,null,null,7,null,null,"заведующего кафедрой",null,null,null,null,null,"лаборанта лаборатории социально-психологических исследований"]
[null,"доктор",null,null,null,"доктора",null,null,null,null,6,null,null,"заведующего кафедрой",null,null,null,null,null,"лаборанта лаборатории социально-психологических исследований"]
[null,"доцент",null,null,null,"доцента",null,null,null,null,6,null,null,"заведующего кафедрой",null,null,null,null,null,"лаборанта лаборатории социально-психологических исследований"]
[null,"очный",null,null,null,"очного",null,null,null,null,5,null,null,"заведующего кафедрой",null,null,null,null,null,"лаборанта лаборатории социально-психологических исследований"]
[null,"врач",null,null,null,"врача",null,null,null,null,4,null,null,"заведующего кафедрой",null,null,null,null,null,"лаборанта лаборатории социально-психологических исследований"]
["Результат:",{"$f":"TRIM(N182)","v":"заведующего кафедрой"},null,null,null,null,null,null,null,null,null,null,null,null,null,null,null,null,null,{"$f":"T182","v":"лаборанта лаборатории социально-психологических исследований"}]
[]
["Нормализация должности","кафедрой кафедры",null,null,null,"кафедрой",null,null,null,null,{"$f":"LEN(B185)","v":16},null,null,{"$f":"SUBSTITUTE(CONCATENATE(B183,\" \",N144),B185,F185)","v":"заведующего кафедрой физиологии с курсом безопасности жизнедеятельности и медицины катастроф"}]
["и подразделения","центром центра",null,null,null,"центром",null,null,null,null,{"$f":"LEN(B186)","v":14},null,null,{"$f":"SUBSTITUTE(N185,B186,F186)","v":"заведующего кафедрой физиологии с курсом безопасности жизнедеятельности и медицины катастроф"}]
[null,"отделением отделения",null,null,null,"отделением",null,null,null,null,{"$f":"LEN(B187)","v":20},null,null,{"$f":"SUBSTITUTE(N186,B187,F187)","v":"заведующего кафедрой физиологии с курсом безопасности жизнедеятельности и медицины катастроф"}]
[null,"отдела отдела",null,null,null,"отдела",null,null,null,null,{"$f":"LEN(B188)","v":13},null,null,{"$f":"SUBSTITUTE(N187,B188,F188)","v":"заведующего кафедрой физиологии с курсом безопасности жизнедеятельности и медицины катастроф"}]
[null,"отделом отдела",null,null,null,"отдела",null,null,null,null,{"$f":"LEN(B189)","v":14},null,null,{"$f":"SUBSTITUTE(N188,B189,F189)","v":"заведующего кафедрой физиологии с курсом безопасности жизнедеятельности и медицины катастроф"}]
["Результат:",{"$f":"TRIM(N189)","v":"заведующего кафедрой физиологии с курсом безопасности жизнедеятельности и медицины катастроф"}]
[]
[]
["Согласие на привлечение к работе в выходные дни:",null,null,null,{"$f":"VLOOKUP(RIGHT('Для заполнения'!$D$3,2),B195:C200,2,0)","v":"Согласна"}]
[null,"Окончание ФИО","Формулировка"]
[null,"ич","Согласен"]
[null,"на","Согласна"]
[null,"зи","Согласна"]
[null,"зы","Согласна"]
[null,"ли","Согласен"]
[null,"лы","Согласен"]
[]
["Формулировки заявления по второму месту работы:"]
[null,{"$f":"CONCATENATE(\"Прошу предоставить мне отпуск без сохранения заработной платы сроком \",Расчеты!J94,\" календарных дней: \",Расчеты!J95,\".\")","v":"Прошу предоставить мне отпуск без сохранения заработной платы сроком 3 календарных дней: 31.01.2020, 03.02.2020, 04.02.2020."}]
[null,{"$f":"CONCATENATE(\"Прошу предоставить мне \",IF(Расчеты!$J$94>1,\"дополнительные выходные дни \",\"дополнительный выходной день \"),Расчеты!$J$95,\" в счёт очередного оплачиваемого отпуска.\")","v":"Прошу предоставить мне дополнительные выходные дни 31.01.2020, 03.02.2020, 04.02.2020 в счёт очередного оплачиваемого отпуска."}]
[]
["Даты:","Подготовки документов",null,null,null,null,null,"Возврата аванса"]
[null,{"$f":"YEAR('Для заполнения'!$D$30)","v":2020},null,null,null,null,null,{"$f":"YEAR('Для заполнения'!$D$31)","v":2020}]
[null,{"$f":"TEXT(MONTH('Для заполнения'!$D$30),\"00\")","v":"03"},null,null,null,null,null,{"$f":"TEXT(MONTH('Для заполнения'!$D$31),\"00\")","v":"02"}]
[null,{"$f":"DAY('Для заполнения'!$D$30)","v":4},null,null,null,null,null,{"$f":"DAY('Для заполнения'!$D$31)","v":7}]
[null,{"$f":"CONCATENATE(B209,\".\",B208,\".\",B207)","v":"4.03.2020"},null,null,null,null,null,{"$f":"CONCATENATE(H209,\".\",H208,\".\",H207)","v":"7.02.2020"}]
["Форматирование всей даты с помощью функции TEXT не работает при переносе документа из LibreOffice в Excel из-за разного языка форматирующий строк — DD.MM.YYYY и ДД.ММ.ГГГГ."]
["Метод указания языка, приведённый ниже, не работает в Excel 2010"]
["https://excel.tips.net/T003299_Specifying_a_Language_for_the_TEXT_Function.html"]
["'=TEXT(A1,\"[$-409]mmmm, yyyy\")"]
["Note that the bracketed code is within the format string, and the code itself is preceded by a dollar sign and a dash. The code is either three or four hexadecimal digits. (Actually, all LCIDs can be expressed in four hexadecimal digits, but if the leading digit is a zero, you don't need to include it.) The example, above, shows how to express results in English, but you can pick any of a wide range of countries:"]
["0409   English (U.S.)"]